Body URI,Body Name,Date,Transaction Number (URN),Invoice Number,Amount,Supplier Name,Supplier ID,Expense Area,Expense Type,Expense Code,BVACOP,Proclass,Extended Description
,Council of the Isles of Scilly,01/12/2011,015-03-0229944,N/a,2327.58,AGE CONCERN SO,N/a,BUZZ-A-BUSS (DIAL A RIDE SCHEME),Professional Services,42001,"Highways, Roads & Transport",,
,Council of the Isles of Scilly,01/12/2011,015-03-0229946,N/a,33833.36,PUBLIC WORK LOAN DD,N/a,EXTERNAL INTEREST PAYABLE,Bank charges,32303,Other Operating Income & Expenditure,,
,Council of the Isles of Scilly,01/12/2011,015-03-0229946,N/a,8763.93,PUBLIC WORK LOAN DD,N/a,PWLB Principal Repayment,Bank charges,X3700,Other Operating Income & Expenditure,,
,Council of the Isles of Scilly,08/12/2011,015-03-0229984,N/a,500,TELE DD,N/a,INTERNAL SUPPORT SERVICES - MISCELLANEOUS,Stamps/Franking,33001,Central Services,,
,Council of the Isles of Scilly,15/12/2011,015-03-0230511,N/a,1025,JOEL WILLIAMS,N/a,HOMELESSNESS,Rental Payments,12001,Housing Services,,
,Council of the Isles of Scilly,14/12/2011,015-03-0230520,N/a,4.88,BUS.CHRG.CARD DD,N/a,ADULT SOCIAL CARE STRATEGY,General,32301,Adult & Community Services,,
,Council of the Isles of Scilly,14/12/2011,015-03-0230521,N/a,35.04,BUS.CHRG.CARD DD,N/a,SPORTS HALL,General,30101,Cultural Services,,
,Council of the Isles of Scilly,14/12/2011,015-03-0230522,N/a,18.14,BUS.CHRG.CARD DD,N/a,SPORTS HALL,General,30101,Cultural Services,,
,Council of the Isles of Scilly,14/12/2011,015-03-0230523,N/a,141.65,BUS.CHRG.CARD DD,N/a,SPORTS HALL,General,30101,Cultural Services,,
,Council of the Isles of Scilly,14/12/2011,015-03-0230524,N/a,31.99,BUS.CHRG.CARD DD,N/a,SPORTS HALL,General,30101,Cultural Services,,
,Council of the Isles of Scilly,14/12/2011,015-03-0230525,N/a,47.57,BUS.CHRG.CARD DD,N/a,SPORTS HALL,General,30101,Cultural Services,,
,Council of the Isles of Scilly,14/12/2011,015-03-0230527,N/a,15.8,BUS.CHRG.CARD DD,N/a,DEMOCRATIC REPRESENTATION & MANAGEMENT,Train Travel,23003,Central Services,,
,Council of the Isles of Scilly,14/12/2011,015-03-0230531,N/a,25,BUS.CHRG.CARD DD,N/a,INSHORE FISHERIES & CONSERVATION AUTHORITIES, Recharges,20901,Environmental Services,,
,Council of the Isles of Scilly,14/12/2011,015-03-0230532,N/a,224.67,BUS.CHRG.CARD DD,N/a,OLDER PEOPLE OVER 65 - PARK HOUSE RESIDENTIAL CARE,Other provision,31003,Adult & Community Services,,
,Council of the Isles of Scilly,14/12/2011,015-03-0230533,N/a,181.41,BUS.CHRG.CARD DD,N/a,OLDER PEOPLE OVER 65 - PARK HOUSE RESIDENTIAL CARE,Other provision,31003,Adult & Community Services,,
,Council of the Isles of Scilly,14/12/2011,015-03-0230534,N/a,307.82,BUS.CHRG.CARD DD,N/a,OLDER PEOPLE OVER 65 - PARK HOUSE RESIDENTIAL CARE,Other provision,31003,Adult & Community Services,,
,Council of the Isles of Scilly,14/12/2011,015-03-0230535,N/a,63.75,BUS.CHRG.CARD DD,N/a,OLDER PEOPLE OVER 65 - PARK HOUSE RESIDENTIAL CARE,Other provision,31003,Adult & Community Services,,
,Council of the Isles of Scilly,14/12/2011,015-03-0230536,N/a,63.75,BUS.CHRG.CARD DD,N/a,OLDER PEOPLE OVER 65 - PARK HOUSE RESIDENTIAL CARE,Other provision,31003,Adult & Community Services,,
,Council of the Isles of Scilly,14/12/2011,015-03-0230537,N/a,25.98,BUS.CHRG.CARD DD,N/a,OLDER PEOPLE OVER 65 - PARK HOUSE RESIDENTIAL CARE,Other provision,31003,Adult & Community Services,,
,Council of the Isles of Scilly,14/12/2011,015-03-0230538,N/a,164.09,BUS.CHRG.CARD DD,N/a,OLDER PEOPLE OVER 65 - PARK HOUSE RESIDENTIAL CARE,Other provision,31003,Adult & Community Services,,
,Council of the Isles of Scilly,14/12/2011,015-03-0230539,N/a,7.69,BUS.CHRG.CARD DD,N/a,OLDER PEOPLE OVER 65 - PARK HOUSE RESIDENTIAL CARE,Other provision,31003,Adult & Community Services,,
,Council of the Isles of Scilly,14/12/2011,015-03-0230542,N/a,28,BUS.CHRG.CARD DD,N/a,CORPORATE MANAGEMENT - TREASURY MANAGEMENT,Bank charges,32303,Central Services,,
,Council of the Isles of Scilly,14/12/2011,015-03-0230551,N/a,80.82,BUS.CHRG.CARD DD,N/a,EMERGENCY PLANNING,General,30101,Central Services,,
,Council of the Isles of Scilly,14/12/2011,015-03-0230552,N/a,48.42,BUS.CHRG.CARD DD,N/a,EMERGENCY PLANNING,General,30101,Central Services,,
,Council of the Isles of Scilly,14/12/2011,015-03-0230553,N/a,172.68,BUS.CHRG.CARD DD,N/a,CORPORATE MANAGEMENT - OTHER,Civic Expenses,34004,Central Services,,
,Council of the Isles of Scilly,14/12/2011,015-03-0230559,N/a,3.35,BUS.CHRG.CARD DD,N/a,CONSERVATION & LISTED BUILDINGS,Meetings,31001,Planning Services,,
,Council of the Isles of Scilly,14/12/2011,015-03-0230560,N/a,-141.9,BUS.CHRG.CARD DD,N/a,SPORTS HALL,Train Travel,23003,Cultural Services,,
,Council of the Isles of Scilly,20/12/2011,015-03-0230637,N/a,6705.8,REDACTED PERSONAL INFORMATION,REDACTED PERSONAL INFORMATION,ADULTS UNDER 65 LD - SUPPORTED & OTHER ACCOMMODATION,Residential Care,42005,Adult & Community Services,,
,Council of the Isles of Scilly,20/12/2011,015-03-0230640,N/a,4342.16,BRITISH GAS,N/a,FUEL COSTS,Electricity,Z0052,Other Operating Income & Expenditure,,
,Council of the Isles of Scilly,21/12/2011,015-03-0230647,N/a,745,RECEIVER DUCHY,N/a,TOURISM - TIC,Other rental income,81005,Cultural Services,,
,Council of the Isles of Scilly,22/12/2011,015-03-0230656,N/a,4426,ODPM DD,N/a,HOUSING STOCK MANAGEMENT,Housing Subsidy - Negative,53106,Housing Revenue Account,,
,Council of the Isles of Scilly,28/12/2011,015-03-0230782,N/a,15830.7,DEVON-CORN POLICE,N/a,PRECEPTS & LEVIES,Other,40203,Other Operating Income & Expenditure,,
,Council of the Isles of Scilly,12/12/2011,007-02-0229654,N/a,371.25,ADD AIR,3667,WASTE DISPOSAL - INCINERATOR,External Contractors,10101,Environmental Services,,
,Council of the Isles of Scilly,28/12/2011,007-02-0230627,N/a,94.5,SJH DESIGN SERVICES,2002,OFFICE - TOWN HALL,External Contractors,10101,Central Services,,
,Council of the Isles of Scilly,30/12/2011,007-02-0230789,N/a,1320,PARTRIDGE VENTILATION,5487,OFFICE - TOWN HALL,External Contractors,10101,Central Services,,
,Council of the Isles of Scilly,05/12/2011,018-02-0228938,N/a,37.5,CD ELECTRICAL SERVICES,1007,RESPONSIVE R&M,External Contractors,10101,Housing Revenue Account,,
,Council of the Isles of Scilly,05/12/2011,018-02-0228939,N/a,38.9,CD ELECTRICAL SERVICES,1007,RESPONSIVE R&M,External Contractors,10101,Housing Revenue Account,,
,Council of the Isles of Scilly,12/12/2011,015-02-0229686,N/a,193.95,CD ELECTRICAL SERVICES,1007,RESPONSIVE R&M,External Contractors,10101,Housing Revenue Account,,
,Council of the Isles of Scilly,12/12/2011,015-02-0229686,N/a,250.66,CD ELECTRICAL SERVICES,1007,RESPONSIVE R&M,External Contractors,10101,Housing Revenue Account,,
,Council of the Isles of Scilly,12/12/2011,015-02-0229686,N/a,542.08,CD ELECTRICAL SERVICES,1007,RESPONSIVE R&M,External Contractors,10101,Housing Revenue Account,,
,Council of the Isles of Scilly,12/12/2011,015-02-0229686,N/a,191.27,CD ELECTRICAL SERVICES,1007,RESPONSIVE R&M,External Contractors,10101,Housing Revenue Account,,
,Council of the Isles of Scilly,12/12/2011,015-02-0229686,N/a,192.6,CD ELECTRICAL SERVICES,1007,RESPONSIVE R&M,External Contractors,10101,Housing Revenue Account,,
,Council of the Isles of Scilly,12/12/2011,015-02-0229686,N/a,30.5,CD ELECTRICAL SERVICES,1007,RESPONSIVE R&M,External Contractors,10101,Housing Revenue Account,,
,Council of the Isles of Scilly,12/12/2011,015-02-0229688,N/a,63,CD ELECTRICAL SERVICES,1007,RESPONSIVE R&M,External Contractors,10101,Housing Revenue Account,,
,Council of the Isles of Scilly,12/12/2011,015-02-0229688,N/a,1252,CD ELECTRICAL SERVICES,1007,RESPONSIVE R&M,External Contractors,10101,Housing Revenue Account,,
,Council of the Isles of Scilly,14/12/2011,007-02-0229922,N/a,1125.95,ISLAND DECORATORS LTD,5354,RESPONSIVE R&M,External Contractors,10101,Housing Revenue Account,,
,Council of the Isles of Scilly,28/12/2011,013-02-0230666,N/a,-2318,WESTERN MAINTENANCE,3896,EXTENDED SCHOOLS GRANT,External Contractors,10101,Education,,
,Council of the Isles of Scilly,29/12/2011,007-02-0230667,N/a,2318,WESTERN MAINTENANCE,3896,EXTENDED SCHOOLS GRANT,External Contractors,10101,Education,,
,Council of the Isles of Scilly,28/12/2011,007-02-0230541,N/a,2318,WESTERN MAINTENANCE,3896,EXTENDED SCHOOLS GRANT,External Contractors,10101,Education,,
,Council of the Isles of Scilly,19/12/2011,018-02-0230221,N/a,1732.5,MR P MALLON,3992,Capital,External Contractors,10101,Capital,,
,Council of the Isles of Scilly,13/12/2011,007-02-0229821,N/a,4404.5,CD ELECTRICAL SERVICES,1007,Capital,External Contractors,10101,Capital,,
,Council of the Isles of Scilly,19/12/2011,007-02-0230158,N/a,1912.7,CD ELECTRICAL SERVICES,1007,Capital,External Contractors,10101,Capital,,
,Council of the Isles of Scilly,05/12/2011,018-02-0228940,N/a,2974.65,CD ELECTRICAL SERVICES,1007,Capital,External Contractors,10101,Capital,,
,Council of the Isles of Scilly,05/12/2011,018-02-0228937,N/a,539.79,CD ELECTRICAL SERVICES,1007,OLDER PEOPLE OVER 65 - PARK HOUSE RESIDENTIAL CARE,Repairs and Maintenance,10302,Adult & Community Services,,
,Council of the Isles of Scilly,28/12/2011,007-02-0230591,N/a,1230.55,R HAND,215,Capital,Removal Costs,10401,Capital,,
,Council of the Isles of Scilly,19/12/2011,007-02-0230239,N/a,132.3,SIBLEY'S FUEL & MARINE SERVICE,194,OLDER PEOPLE OVER 65 - PARK HOUSE RESIDENTIAL CARE,Gas,11101,Adult & Community Services,,
,Council of the Isles of Scilly,19/12/2011,007-02-0230239,N/a,529.2,SIBLEY'S FUEL & MARINE SERVICE,194,SPORTS HALL,Gas,11101,Cultural Services,,
,Council of the Isles of Scilly,19/12/2011,007-02-0230239,N/a,8337.88,SIBLEY'S FUEL & MARINE SERVICE,194,WASTE DISPOSAL - INCINERATOR,Oil,11102,Environmental Services,,
,Council of the Isles of Scilly,12/12/2011,007-02-0229783,N/a,1508,SIBLEY'S FUEL & MARINE SERVICE,194,AIRPORT - GENERAL,Oil,11102,Other Operating Income & Expenditure,,
,Council of the Isles of Scilly,19/12/2011,007-02-0230239,N/a,912.14,SIBLEY'S FUEL & MARINE SERVICE,194,SWIMMING POOL,Oil,11102,Cultural Services,,
,Council of the Isles of Scilly,28/12/2011,007-02-0230596,N/a,350,DUCHY OF CORNWALL,286,IOS WATER SERVICES,Rental Payments,12001,Other Operating Income & Expenditure,,
,Council of the Isles of Scilly,28/12/2011,007-02-0230597,N/a,75,DUCHY OF CORNWALL,286,MOORWELL DEPOT,Rental Payments,12001,Other Operating Income & Expenditure,,
,Council of the Isles of Scilly,28/12/2011,007-02-0230598,N/a,1687.5,DUCHY OF CORNWALL,286,MOORWELL DEPOT,Rental Payments,12001,Other Operating Income & Expenditure,,
,Council of the Isles of Scilly,28/12/2011,007-02-0230595,N/a,1150,DUCHY OF CORNWALL,286,CARN THOMAS EDUCATION BUILDING,Rental Payments,12001,Central Services,,
,Council of the Isles of Scilly,19/12/2011,007-02-0230236,N/a,77.06,THE CONSORTIUM,141,CARN THOMAS EDUCATION BUILDING,Materials,15001,Central Services,,
,Council of the Isles of Scilly,19/12/2011,007-02-0230237,N/a,102.98,THE CONSORTIUM,141,PLANNED R&M,Materials,15001,Housing Revenue Account,,
,Council of the Isles of Scilly,28/12/2011,007-02-0230541,N/a,125.82,WESTERN MAINTENANCE,3896,EXTENDED SCHOOLS GRANT,Contractors,16001,Education,,
,Council of the Isles of Scilly,19/12/2011,018-02-0230206,N/a,90.87,WESTERN MAINTENANCE,3896,EXTENDED SCHOOLS GRANT,Contractors,16001,Education,,
,Council of the Isles of Scilly,28/12/2011,013-02-0230666,N/a,-125.82,WESTERN MAINTENANCE,3896,EXTENDED SCHOOLS GRANT,Contractors,16001,Education,,
,Council of the Isles of Scilly,29/12/2011,007-02-0230667,N/a,125.82,WESTERN MAINTENANCE,3896,EXTENDED SCHOOLS GRANT,Contractors,16001,Education,,
,Council of the Isles of Scilly,30/12/2011,007-02-0230800,N/a,9000,CELTIC PAVERS,3435,Capital,Contractors,16001,Capital,,
,Council of the Isles of Scilly,12/12/2011,007-02-0229714,N/a,15,THE WHEELHOUSE,5220,OLDER PEOPLE OVER 65 - OTHER - CARERS,Room Hire,18001,Adult & Community Services,,
,Council of the Isles of Scilly,28/12/2011,007-02-0230620,N/a,1455,THE ENVIRONMENT AGENCY,1317,WASTE DISPOSAL - INCINERATOR,Licence Renewal,18700,Environmental Services,,
,Council of the Isles of Scilly,12/12/2011,007-02-0229745,N/a,64,DAVID PARR ENGINEERING,61,FIRE & RESCUE OPERATIONS,Repairs by Contractor,20201,Fire & rescue,,
,Council of the Isles of Scilly,12/12/2011,007-02-0229748,N/a,96,DAVID PARR ENGINEERING,61,FIRE & RESCUE OPERATIONS,Repairs by Contractor,20201,Fire & rescue,,
,Council of the Isles of Scilly,12/12/2011,007-02-0229752,N/a,1280,DAVID PARR ENGINEERING,61,FIRE & RESCUE OPERATIONS,Repairs by Contractor,20201,Fire & rescue,,
,Council of the Isles of Scilly,12/12/2011,007-02-0229754,N/a,80,DAVID PARR ENGINEERING,61,FIRE & RESCUE OPERATIONS,Repairs by Contractor,20201,Fire & rescue,,
,Council of the Isles of Scilly,12/12/2011,007-02-0229739,N/a,144,DAVID PARR ENGINEERING,61,FIRE & RESCUE OPERATIONS,Repairs by Contractor,20201,Fire & rescue,,
,Council of the Isles of Scilly,12/12/2011,007-02-0229741,N/a,48,DAVID PARR ENGINEERING,61,FIRE & RESCUE OPERATIONS,Repairs by Contractor,20201,Fire & rescue,,
,Council of the Isles of Scilly,12/12/2011,007-02-0229743,N/a,48,DAVID PARR ENGINEERING,61,FIRE & RESCUE OPERATIONS,Repairs by Contractor,20201,Fire & rescue,,
,Council of the Isles of Scilly,12/12/2011,007-02-0229738,N/a,1408,DAVID PARR ENGINEERING,61,AIRPORT - GENERAL,Repairs by Contractor,20201,Other Operating Income & Expenditure,,
,Council of the Isles of Scilly,12/12/2011,007-02-0229735,N/a,64,DAVID PARR ENGINEERING,61,AIRPORT - GENERAL,Repairs by Contractor,20201,Other Operating Income & Expenditure,,
,Council of the Isles of Scilly,12/12/2011,007-02-0229736,N/a,256,DAVID PARR ENGINEERING,61,AIRPORT - GENERAL,Repairs by Contractor,20201,Other Operating Income & Expenditure,,
,Council of the Isles of Scilly,12/12/2011,015-02-0229737,N/a,25,ISLAND CARRIERS,2431,Vehicle 24 HX51 HLZ - Ford Iveco Dustcart Lorry,Repairs by Contractor,20201,Other Operating Income & Expenditure,,
,Council of the Isles of Scilly,12/12/2011,007-02-0229763,N/a,505,ATS EUROMASTER LTD,114,Vehicle 28 J636 LCV - Case Tractor (Beach),Transport R&M,20301,Other Operating Income & Expenditure,,
,Council of the Isles of Scilly,12/12/2011,015-02-0229737,N/a,135,ISLAND CARRIERS,2431,Vehicle 24 HX51 HLZ - Ford Iveco Dustcart Lorry,Transport R&M,20301,Other Operating Income & Expenditure,,
,Council of the Isles of Scilly,19/12/2011,007-02-0230239,N/a,5.92,SIBLEY'S FUEL & MARINE SERVICE,194,Vehicle 38 WK55 ZWG - Mitsubishi Pick Up,Transport R&M,20301,Other Operating Income & Expenditure,,
,Council of the Isles of Scilly,12/12/2011,007-02-0229784,N/a,40.97,SIBLEY'S FUEL & MARINE SERVICE,194,FIRE & RESCUE OPERATIONS, Fuel,20401,Fire & rescue,,
,Council of the Isles of Scilly,12/12/2011,007-02-0229784,N/a,14.16,SIBLEY'S FUEL & MARINE SERVICE,194,FIRE & RESCUE OPERATIONS, Fuel,20401,Fire & rescue,,
,Council of the Isles of Scilly,12/12/2011,007-02-0229784,N/a,176.68,SIBLEY'S FUEL & MARINE SERVICE,194,FIRE & RESCUE OPERATIONS, Fuel,20401,Fire & rescue,,
,Council of the Isles of Scilly,19/12/2011,007-02-0230239,N/a,7.04,SIBLEY'S FUEL & MARINE SERVICE,194,HIGHWAYS  - ROUTINE REPAIRS, Fuel,20401,"Highways, Roads & Transport",,
,Council of the Isles of Scilly,12/12/2011,007-02-0229783,N/a,220.54,SIBLEY'S FUEL & MARINE SERVICE,194,AIRPORT - GENERAL, Fuel,20401,Other Operating Income & Expenditure,,
,Council of the Isles of Scilly,19/12/2011,007-02-0230239,N/a,114.58,SIBLEY'S FUEL & MARINE SERVICE,194,Vehicle 5W M136 ACV - Landrover Defender, Fuel,20401,Other Operating Income & Expenditure,,
,Council of the Isles of Scilly,19/12/2011,007-02-0230239,N/a,71.5,SIBLEY'S FUEL & MARINE SERVICE,194,Vehicle 32W EF55 CJX Vauxhall Combo , Fuel,20401,Other Operating Income & Expenditure,,
,Council of the Isles of Scilly,19/12/2011,007-02-0230239,N/a,7.08,SIBLEY'S FUEL & MARINE SERVICE,194,Small Plant - Other, Fuel,20401,Other Operating Income & Expenditure,,
,Council of the Isles of Scilly,19/12/2011,007-02-0230239,N/a,15.5,SIBLEY'S FUEL & MARINE SERVICE,194,OFFICE - TOWN HALL, Fuel,20401,Central Services,,
,Council of the Isles of Scilly,19/12/2011,007-02-0230239,N/a,6.94,SIBLEY'S FUEL & MARINE SERVICE,194,SPORTS HALL, Fuel,20401,Cultural Services,,
,Council of the Isles of Scilly,19/12/2011,007-02-0230239,N/a,8.26,SIBLEY'S FUEL & MARINE SERVICE,194,EMERGENCY PLANNING, Fuel,20401,Central Services,,
,Council of the Isles of Scilly,19/12/2011,007-02-0230239,N/a,58.3,SIBLEY'S FUEL & MARINE SERVICE,194,Vehicle 24 HX51 HLZ - Ford Iveco Dustcart Lorry, Lubricants,20501,Other Operating Income & Expenditure,,
,Council of the Isles of Scilly,28/12/2011,007-02-0230557,N/a,196.9,SLR CONSULTING LIMITED,4939,WASTE STRATEGY MANAGEMENT,Air Travel,23002,Environmental Services,,
,Council of the Isles of Scilly,19/12/2011,007-02-0230107,N/a,136,ISLES OF SCILLY TRAVEL,762,IOS SEWERAGE SERVICES,Air Travel,23002,Other Operating Income & Expenditure,,
,Council of the Isles of Scilly,19/12/2011,007-02-0230107,N/a,136,ISLES OF SCILLY TRAVEL,762,IOS WATER SERVICES,Air Travel,23002,Other Operating Income & Expenditure,,
,Council of the Isles of Scilly,19/12/2011,007-02-0230098,N/a,146,ISLES OF SCILLY TRAVEL,762,ADULT & COMMUNITY LEARNING - LAG PROJECT,Air Travel,23002,Education,,
,Council of the Isles of Scilly,05/12/2011,018-02-0228934,N/a,89,ISLES OF SCILLY TRAVEL,762,SWIMMING POOL,Air Travel,23002,Cultural Services,,
,Council of the Isles of Scilly,19/12/2011,007-02-0230101,N/a,180,ISLES OF SCILLY TRAVEL,762,EXTENDED SCHOOLS GRANT,Air Travel,23002,Education,,
,Council of the Isles of Scilly,19/12/2011,007-02-0230104,N/a,411,ISLES OF SCILLY TRAVEL,762,EXTENDED SCHOOLS GRANT,Air Travel,23002,Education,,
,Council of the Isles of Scilly,19/12/2011,007-02-0230104,N/a,-246,ISLES OF SCILLY TRAVEL,762,EXTENDED SCHOOLS GRANT,Air Travel,23002,Education,,
,Council of the Isles of Scilly,19/12/2011,007-02-0230108,N/a,627,ISLES OF SCILLY TRAVEL,762,EXTENDED SCHOOLS GRANT,Air Travel,23002,Education,,
,Council of the Isles of Scilly,19/12/2011,007-02-0230120,N/a,627,ISLES OF SCILLY TRAVEL,762,EXTENDED SCHOOLS GRANT,Air Travel,23002,Education,,
,Council of the Isles of Scilly,19/12/2011,007-02-0230123,N/a,178,ISLES OF SCILLY TRAVEL,762,STRATEGIC MANAGEMENT OF CHILDRENS SERVICES,Air Travel,23002,Education,,
,Council of the Isles of Scilly,19/12/2011,007-02-0230108,N/a,-298,ISLES OF SCILLY TRAVEL,762,STRATEGIC MANAGEMENT OF CHILDRENS SERVICES,Air Travel,23002,Education,,
,Council of the Isles of Scilly,19/12/2011,007-02-0230106,N/a,678,ISLES OF SCILLY TRAVEL,762,Positive Activities for Youth,Air Travel,23002,Education,,
,Council of the Isles of Scilly,19/12/2011,007-02-0230106,N/a,-51,ISLES OF SCILLY TRAVEL,762,Positive Activities for Youth,Air Travel,23002,Education,,
,Council of the Isles of Scilly,19/12/2011,007-02-0230131,N/a,51,ISLES OF SCILLY TRAVEL,762,Positive Activities for Youth,Air Travel,23002,Education,,
,Council of the Isles of Scilly,19/12/2011,007-02-0230127,N/a,111,ISLES OF SCILLY TRAVEL,762,Positive Activities for Youth,Air Travel,23002,Education,,
,Council of the Isles of Scilly,19/12/2011,007-02-0230129,N/a,73,ISLES OF SCILLY TRAVEL,762,Positive Activities for Youth,Air Travel,23002,Education,,
,Council of the Isles of Scilly,19/12/2011,007-02-0230126,N/a,123,ISLES OF SCILLY TRAVEL,762,14 to 19 EDUCATION,Air Travel,23002,Education,,
,Council of the Isles of Scilly,19/12/2011,007-02-0230117,N/a,10,ISLES OF SCILLY TRAVEL,762,STRATEGIC MANAGEMENT - CWDC (Children's Workforce Development Council) ,Air Travel,23002,Education,,
,Council of the Isles of Scilly,19/12/2011,007-02-0230114,N/a,123,ISLES OF SCILLY TRAVEL,762,STRATEGIC MANAGEMENT - CWDC (Children's Workforce Development Council) ,Air Travel,23002,Education,,
,Council of the Isles of Scilly,12/12/2011,007-02-0229682,N/a,675,MACE LTD,4537,Capital,Air Travel,23002,Capital,,
,Council of the Isles of Scilly,28/12/2011,007-02-0230550,N/a,85,MACE LTD,4537,Capital,Air Travel,23002,Capital,,
,Council of the Isles of Scilly,28/12/2011,007-02-0230550,N/a,303,MACE LTD,4537,Capital,Air Travel,23002,Capital,,
,Council of the Isles of Scilly,19/12/2011,007-02-0230099,N/a,89,ISLES OF SCILLY TRAVEL,762,Capital,Air Travel,23002,Capital,,
,Council of the Isles of Scilly,12/12/2011,007-02-0229731,N/a,15,BRYHER BOAT SERVICES,19,IOS WATER SERVICES - BRYHER,Boat Travel,23004,Other Operating Income & Expenditure,,
,Council of the Isles of Scilly,19/12/2011,007-02-0230152,N/a,20,ST MARTIN'S BOAT SERVICES,906,ADULT & COMMUNITY LEARNING - SFA,Boat Travel,23004,Education,,
,Council of the Isles of Scilly,12/12/2011,007-02-0229777,N/a,64,DV PEACOCK,180,ADULT & COMMUNITY LEARNING - PROJECTS,Boat Travel,23004,Education,,
,Council of the Isles of Scilly,12/12/2011,007-02-0229769,N/a,258,DV PEACOCK,180,CONCESSIONARY FARES,Boat Travel,23004,"Highways, Roads & Transport",,
,Council of the Isles of Scilly,19/12/2011,007-02-0230140,N/a,250.1,ST MARTIN'S BOAT SERVICES,906,CONCESSIONARY FARES,Boat Travel,23004,"Highways, Roads & Transport",,
,Council of the Isles of Scilly,19/12/2011,007-02-0230140,N/a,90.2,ST MARTIN'S BOAT SERVICES,906,CONCESSIONARY FARES,Boat Travel,23004,"Highways, Roads & Transport",,
,Council of the Isles of Scilly,19/12/2011,007-02-0230140,N/a,155.8,ST MARTIN'S BOAT SERVICES,906,CONCESSIONARY FARES,Boat Travel,23004,"Highways, Roads & Transport",,
,Council of the Isles of Scilly,28/12/2011,007-02-0230576,N/a,840,BRYHER BOAT SERVICES,19,CONCESSIONARY FARES,Boat Travel,23004,"Highways, Roads & Transport",,
,Council of the Isles of Scilly,12/12/2011,007-02-0229731,N/a,572.3,BRYHER BOAT SERVICES,19,DEMOCRATIC REPRESENTATION & MANAGEMENT,Boat Travel,23004,Central Services,,
,Council of the Isles of Scilly,19/12/2011,007-02-0230146,N/a,45,ST MARTIN'S BOAT SERVICES,906,HOME TO SCHOOL TRANSPORT,Boat Travel,23004,Education,,
,Council of the Isles of Scilly,28/12/2011,007-02-0230606,N/a,368,ST MARTIN'S BOAT SERVICES,906,HOME TO SCHOOL TRANSPORT,Boat Travel,23004,Education,,
,Council of the Isles of Scilly,19/12/2011,007-02-0230273,N/a,78,BRYHER BOAT SERVICES,19,Early Years - Training for childcare workers ,Boat Travel,23004,Education,,
,Council of the Isles of Scilly,19/12/2011,007-02-0230273,N/a,188,BRYHER BOAT SERVICES,19,Early Years - access funding,Boat Travel,23004,Education,,
,Council of the Isles of Scilly,19/12/2011,007-02-0230147,N/a,625,ST MARTIN'S BOAT SERVICES,906,Early Years - access funding,Boat Travel,23004,Education,,
,Council of the Isles of Scilly,19/12/2011,007-02-0230145,N/a,224.5,ST MARTIN'S BOAT SERVICES,906,Early Years - access funding,Boat Travel,23004,Education,,
,Council of the Isles of Scilly,12/12/2011,007-02-0229733,N/a,91.15,BRYHER BOAT SERVICES,19,Early Years - access funding,Boat Travel,23004,Education,,
,Council of the Isles of Scilly,12/12/2011,007-02-0229778,N/a,606.38,DV PEACOCK,180,Early Years - access funding,Boat Travel,23004,Education,,
,Council of the Isles of Scilly,12/12/2011,015-02-0229684,N/a,639,ST MARTIN'S BOAT SERVICES,906,Early Years - access funding,Boat Travel,23004,Education,,
,Council of the Isles of Scilly,12/12/2011,015-02-0229684,N/a,46.5,ST MARTIN'S BOAT SERVICES,906,Early Years - access funding,Boat Travel,23004,Education,,
,Council of the Isles of Scilly,28/12/2011,007-02-0230607,N/a,688,ST MARTIN'S BOAT SERVICES,906,FAMILY SUPPORT SERVICES - OTHER INCL DIRECT PAYMENTS,Boat Travel,23004,Childrens Social Care,,
,Council of the Isles of Scilly,28/12/2011,007-02-0230608,N/a,78,ST MARTIN'S BOAT SERVICES,906,FAMILY SUPPORT SERVICES - OTHER INCL DIRECT PAYMENTS,Boat Travel,23004,Childrens Social Care,,
,Council of the Isles of Scilly,28/12/2011,007-02-0230609,N/a,443.5,ST MARTIN'S BOAT SERVICES,906,FAMILY SUPPORT SERVICES - OTHER INCL DIRECT PAYMENTS,Boat Travel,23004,Childrens Social Care,,
,Council of the Isles of Scilly,28/12/2011,007-02-0230610,N/a,78,ST MARTIN'S BOAT SERVICES,906,FAMILY SUPPORT SERVICES - OTHER INCL DIRECT PAYMENTS,Boat Travel,23004,Childrens Social Care,,
,Council of the Isles of Scilly,28/12/2011,007-02-0230611,N/a,78,ST MARTIN'S BOAT SERVICES,906,FAMILY SUPPORT SERVICES - OTHER INCL DIRECT PAYMENTS,Boat Travel,23004,Childrens Social Care,,
,Council of the Isles of Scilly,28/12/2011,007-02-0230612,N/a,76.5,ST MARTIN'S BOAT SERVICES,906,FAMILY SUPPORT SERVICES - OTHER INCL DIRECT PAYMENTS,Boat Travel,23004,Childrens Social Care,,
,Council of the Isles of Scilly,28/12/2011,007-02-0230613,N/a,396,ST MARTIN'S BOAT SERVICES,906,FAMILY SUPPORT SERVICES - OTHER INCL DIRECT PAYMENTS,Boat Travel,23004,Childrens Social Care,,
,Council of the Isles of Scilly,28/12/2011,007-02-0230614,N/a,78,ST MARTIN'S BOAT SERVICES,906,FAMILY SUPPORT SERVICES - OTHER INCL DIRECT PAYMENTS,Boat Travel,23004,Childrens Social Care,,
,Council of the Isles of Scilly,19/12/2011,007-02-0230136,N/a,78,ST MARTIN'S BOAT SERVICES,906,AONB - GENERAL,Boat Travel,23004,Planning Services,,
,Council of the Isles of Scilly,12/12/2011,007-02-0229731,N/a,39,BRYHER BOAT SERVICES,19,TOURISM - TIC,Boat Travel,23004,Cultural Services,,
,Council of the Isles of Scilly,28/12/2011,007-02-0230557,N/a,46.7,SLR CONSULTING LIMITED,4939,WASTE STRATEGY MANAGEMENT,Other,23005,Environmental Services,,
,Council of the Isles of Scilly,19/12/2011,007-02-0230107,N/a,12.5,ISLES OF SCILLY TRAVEL,762,IOS SEWERAGE SERVICES,Other,23005,Other Operating Income & Expenditure,,
,Council of the Isles of Scilly,19/12/2011,007-02-0230107,N/a,12.5,ISLES OF SCILLY TRAVEL,762,IOS WATER SERVICES,Other,23005,Other Operating Income & Expenditure,,
,Council of the Isles of Scilly,28/12/2011,007-02-0230626,N/a,35.6,SJH DESIGN SERVICES,2002,IOS WATER SERVICES,Other,23005,Other Operating Income & Expenditure,,
,Council of the Isles of Scilly,05/12/2011,018-02-0228913,N/a,35,WESTFORD HOUSE,5391,ADULT & COMMUNITY LEARNING - SFA,Other,23005,Education,,
,Council of the Isles of Scilly,28/12/2011,007-02-0230645,N/a,500,JULIE HAVLIN,2781,CHILDRENS SERVICES - COMMISSIONING & SOCIAL WORK,Other,23005,Childrens Social Care,,
,Council of the Isles of Scilly,28/12/2011,007-02-0230646,N/a,250,JULIE HAVLIN,2781,CHILDRENS SERVICES - COMMISSIONING & SOCIAL WORK,Other,23005,Childrens Social Care,,
,Council of the Isles of Scilly,28/12/2011,007-02-0230563,N/a,266.64,THE WHEELHOUSE,5220,Capital,Other,23005,Capital,,
,Council of the Isles of Scilly,19/12/2011,007-02-0230161,N/a,7.5,CD ELECTRICAL SERVICES,1007,IOS SEWERAGE SERVICES,Air Transport,25001,Other Operating Income & Expenditure,,
,Council of the Isles of Scilly,05/12/2011,018-02-0228937,N/a,16.4,CD ELECTRICAL SERVICES,1007,OLDER PEOPLE OVER 65 - PARK HOUSE RESIDENTIAL CARE,Air Transport,25001,Adult & Community Services,,
,Council of the Isles of Scilly,28/12/2011,007-02-0230587,N/a,5.4,ISLES OF SCILLY STEAMSHIP CO,103,WASTE DISPOSAL - INCINERATOR,Boat Transport,25002,Environmental Services,,
,Council of the Isles of Scilly,28/12/2011,007-02-0230587,N/a,2036.33,ISLES OF SCILLY STEAMSHIP CO,103,WASTE DISPOSAL - RECYCLING,Boat Transport,25002,Environmental Services,,
,Council of the Isles of Scilly,28/12/2011,007-02-0230587,N/a,95.18,ISLES OF SCILLY STEAMSHIP CO,103,REFUSE COLLECTION - BRYHER,Boat Transport,25002,Environmental Services,,
,Council of the Isles of Scilly,28/12/2011,007-02-0230587,N/a,83.28,ISLES OF SCILLY STEAMSHIP CO,103,REFUSE COLLECTION - ST AGNES,Boat Transport,25002,Environmental Services,,
,Council of the Isles of Scilly,28/12/2011,007-02-0230587,N/a,47.59,ISLES OF SCILLY STEAMSHIP CO,103,REFUSE COLLECTION - ST MARTINS,Boat Transport,25002,Environmental Services,,
,Council of the Isles of Scilly,28/12/2011,007-02-0230587,N/a,34,ISLES OF SCILLY STEAMSHIP CO,103,FIRE & RESCUE OPERATIONS,Boat Transport,25002,Fire & rescue,,
,Council of the Isles of Scilly,12/12/2011,015-02-0229698,N/a,144.04,ISLES OF SCILLY STEAMSHIP CO,103,FIRE & RESCUE OPERATIONS,Boat Transport,25002,Fire & rescue,,
,Council of the Isles of Scilly,28/12/2011,007-02-0230587,N/a,157.69,ISLES OF SCILLY STEAMSHIP CO,103,HIGHWAYS  - ROUTINE REPAIRS,Boat Transport,25002,"Highways, Roads & Transport",,
,Council of the Isles of Scilly,12/12/2011,015-02-0229698,N/a,77.65,ISLES OF SCILLY STEAMSHIP CO,103,AIRPORT - GENERAL,Boat Transport,25002,Other Operating Income & Expenditure,,
,Council of the Isles of Scilly,28/12/2011,007-02-0230587,N/a,11.52,ISLES OF SCILLY STEAMSHIP CO,103,IOS SEWERAGE SERVICES,Boat Transport,25002,Other Operating Income & Expenditure,,
,Council of the Isles of Scilly,28/12/2011,007-02-0230587,N/a,401.88,ISLES OF SCILLY STEAMSHIP CO,103,IOS WATER SERVICES,Boat Transport,25002,Other Operating Income & Expenditure,,
,Council of the Isles of Scilly,28/12/2011,007-02-0230587,N/a,23.8,ISLES OF SCILLY STEAMSHIP CO,103,IOS WATER SERVICES - DESALINATION,Boat Transport,25002,Other Operating Income & Expenditure,,
,Council of the Isles of Scilly,28/12/2011,007-02-0230587,N/a,19.8,ISLES OF SCILLY STEAMSHIP CO,103,MOORWELL DEPOT,Boat Transport,25002,Other Operating Income & Expenditure,,
,Council of the Isles of Scilly,28/12/2011,007-02-0230587,N/a,6.5,ISLES OF SCILLY STEAMSHIP CO,103,Vehicle 28 J636 LCV - Case Tractor (Beach),Boat Transport,25002,Other Operating Income & Expenditure,,
,Council of the Isles of Scilly,28/12/2011,007-02-0230587,N/a,10.8,ISLES OF SCILLY STEAMSHIP CO,103,Small Plant - Other,Boat Transport,25002,Other Operating Income & Expenditure,,
,Council of the Isles of Scilly,28/12/2011,007-02-0230587,N/a,26.28,ISLES OF SCILLY STEAMSHIP CO,103,OLDER PEOPLE OVER 65 - PARK HOUSE RESIDENTIAL CARE,Boat Transport,25002,Adult & Community Services,,
,Council of the Isles of Scilly,28/12/2011,007-02-0230587,N/a,53.35,ISLES OF SCILLY STEAMSHIP CO,103,OFFICE - TOWN HALL,Boat Transport,25002,Central Services,,
,Council of the Isles of Scilly,28/12/2011,007-02-0230587,N/a,12.26,ISLES OF SCILLY STEAMSHIP CO,103,SWIMMING POOL,Boat Transport,25002,Cultural Services,,
,Council of the Isles of Scilly,28/12/2011,007-02-0230587,N/a,9.75,ISLES OF SCILLY STEAMSHIP CO,103,SWIMMING POOL,Boat Transport,25002,Cultural Services,,
,Council of the Isles of Scilly,28/12/2011,007-02-0230587,N/a,9.75,ISLES OF SCILLY STEAMSHIP CO,103,PLANNED R&M,Boat Transport,25002,Housing Revenue Account,,
,Council of the Isles of Scilly,28/12/2011,007-02-0230587,N/a,152.2,ISLES OF SCILLY STEAMSHIP CO,103,TOURISM - TIC,Boat Transport,25002,Cultural Services,,
,Council of the Isles of Scilly,12/12/2011,015-02-0229698,N/a,544.55,ISLES OF SCILLY STEAMSHIP CO,103,Capital,Boat Transport,25002,Capital,,
,Council of the Isles of Scilly,12/12/2011,015-02-0229737,N/a,40,ISLAND CARRIERS,2431,WASTE DISPOSAL - INCINERATOR,Other Transport - DLF,25003,Environmental Services,,
,Council of the Isles of Scilly,12/12/2011,015-02-0229737,N/a,1038,ISLAND CARRIERS,2431,WASTE DISPOSAL - RECYCLING,Other Transport - DLF,25003,Environmental Services,,
,Council of the Isles of Scilly,12/12/2011,015-02-0229737,N/a,88.66,ISLAND CARRIERS,2431,REFUSE COLLECTION - BRYHER,Other Transport - DLF,25003,Environmental Services,,
,Council of the Isles of Scilly,12/12/2011,015-02-0229737,N/a,88.67,ISLAND CARRIERS,2431,REFUSE COLLECTION - ST AGNES,Other Transport - DLF,25003,Environmental Services,,
,Council of the Isles of Scilly,12/12/2011,015-02-0229737,N/a,88.67,ISLAND CARRIERS,2431,REFUSE COLLECTION - ST MARTINS,Other Transport - DLF,25003,Environmental Services,,
,Council of the Isles of Scilly,19/12/2011,007-02-0230242,N/a,43.8,R HAND,215,FIRE & RESCUE OPERATIONS,Other Transport - DLF,25003,Fire & rescue,,
,Council of the Isles of Scilly,12/12/2011,015-02-0229737,N/a,40,ISLAND CARRIERS,2431,HIGHWAYS  - ROUTINE REPAIRS,Other Transport - DLF,25003,"Highways, Roads & Transport",,
,Council of the Isles of Scilly,12/12/2011,015-02-0229737,N/a,112.6,ISLAND CARRIERS,2431,IOS WATER SERVICES,Other Transport - DLF,25003,Other Operating Income & Expenditure,,
,Council of the Isles of Scilly,12/12/2011,015-02-0229737,N/a,10,ISLAND CARRIERS,2431,IOS WATER SERVICES - DESALINATION,Other Transport - DLF,25003,Other Operating Income & Expenditure,,
,Council of the Isles of Scilly,12/12/2011,015-02-0229737,N/a,100,ISLAND CARRIERS,2431,SPORTS HALL,Other Transport - DLF,25003,Cultural Services,,
,Council of the Isles of Scilly,12/12/2011,015-02-0229737,N/a,10,ISLAND CARRIERS,2431,DEMOCRATIC REPRESENTATION & MANAGEMENT,Other Transport - DLF,25003,Central Services,,
,Council of the Isles of Scilly,12/12/2011,015-02-0229737,N/a,20,ISLAND CARRIERS,2431,Capital,Other Transport - DLF,25003,Capital,,
,Council of the Isles of Scilly,19/12/2011,007-02-0230243,N/a,93.95,R HAND,215,AIRPORT - GENERAL,Other Transport ,25004,Other Operating Income & Expenditure,,
,Council of the Isles of Scilly,28/12/2011,007-02-0230591,N/a,93.35,R HAND,215,Capital,Other Transport ,25004,Capital,,
,Council of the Isles of Scilly,19/12/2011,007-02-0230243,N/a,63.2,R HAND,215,Capital,Other Transport ,25004,Capital,,
,Council of the Isles of Scilly,12/12/2011,007-02-0229731,N/a,4680,BRYHER BOAT SERVICES,19,HOME TO SCHOOL TRANSPORT,Home to school transport - Primary,26001,Education,,
,Council of the Isles of Scilly,19/12/2011,007-02-0230155,N/a,819,ST MARTIN'S BOAT SERVICES,906,SPECIAL EDUCATIONAL SUPPORT,Home to school transport - Secondary,26002,Education,,
,Council of the Isles of Scilly,12/12/2011,007-02-0229731,N/a,351,BRYHER BOAT SERVICES,19,HOME TO SCHOOL TRANSPORT,Home to school transport - Secondary,26002,Education,,
,Council of the Isles of Scilly,12/12/2011,007-02-0229780,N/a,210,DV PEACOCK,180,HOME TO SCHOOL TRANSPORT,Home to school transport - Secondary,26002,Education,,
,Council of the Isles of Scilly,12/12/2011,007-02-0229781,N/a,180,DV PEACOCK,180,HOME TO SCHOOL TRANSPORT,Home to school transport - Secondary,26002,Education,,
,Council of the Isles of Scilly,12/12/2011,015-02-0229684,N/a,230,ST MARTIN'S BOAT SERVICES,906,HOME TO SCHOOL TRANSPORT,Home to school transport - Secondary,26002,Education,,
,Council of the Isles of Scilly,12/12/2011,015-02-0229675,N/a,1665.83,ISLES OF SCILLY STEAMSHIP CO,761,PUBLIC TRANSPORT - OFF-ISLAND LAUNCH,Launch Subsidy,27001,"Highways, Roads & Transport",,
,Council of the Isles of Scilly,05/12/2011,018-02-0228933,N/a,1665.83,ISLES OF SCILLY STEAMSHIP CO,761,PUBLIC TRANSPORT - OFF-ISLAND LAUNCH,Launch Subsidy,27001,"Highways, Roads & Transport",,
,Council of the Isles of Scilly,19/12/2011,007-02-0230264,N/a,720,MR TONY GODDARD,5333,FIRE & RESCUE OPERATIONS,General,30101,Fire & rescue,,
,Council of the Isles of Scilly,12/12/2011,007-02-0229765,N/a,266.29,THE CONSORTIUM,141,AIRPORT - GENERAL,General,30101,Other Operating Income & Expenditure,,
,Council of the Isles of Scilly,12/12/2011,007-02-0229766,N/a,7.96,THE CONSORTIUM,141,AIRPORT - GENERAL,General,30101,Other Operating Income & Expenditure,,
,Council of the Isles of Scilly,12/12/2011,015-02-0229767,N/a,631.25,PALINTEST LIMITED,3177,IOS WATER SERVICES,General,30101,Other Operating Income & Expenditure,,
,Council of the Isles of Scilly,12/12/2011,007-02-0229690,N/a,1627,CLARK MASTS SYSTEMS LTD,4724,Capital,General,30101,Capital,,
,Council of the Isles of Scilly,19/12/2011,007-02-0230270,N/a,6053.44,NEW SOUND PRODUCTIONS,5430,Capital,General,30101,Capital,,
,Council of the Isles of Scilly,19/12/2011,007-02-0230161,N/a,185,CD ELECTRICAL SERVICES,1007,IOS SEWERAGE SERVICES,Maintenance,30102,Other Operating Income & Expenditure,,
,Council of the Isles of Scilly,30/12/2011,007-02-0230799,N/a,768,RESURGEM ENGINEERING CO LTD,3179,IOS SEWERAGE SERVICES,Maintenance,30102,Other Operating Income & Expenditure,,
,Council of the Isles of Scilly,28/12/2011,007-02-0230588,N/a,160.3,ATS EUROMASTER LTD,114,Vehicle 36 P181 FTT  - LDV Pick Up Double Cab Lorry,Maintenance,30102,Other Operating Income & Expenditure,,
,Council of the Isles of Scilly,28/12/2011,007-02-0230588,N/a,106.86,ATS EUROMASTER LTD,114,Vehicle 26 X654 UFM - Leyland DAF Dustcart (Small),Maintenance,30102,Other Operating Income & Expenditure,,
,Council of the Isles of Scilly,28/12/2011,007-02-0230588,N/a,53.43,ATS EUROMASTER LTD,114,Vehicle 38 WK55 ZWG - Mitsubishi Pick Up,Maintenance,30102,Other Operating Income & Expenditure,,
,Council of the Isles of Scilly,28/12/2011,007-02-0230648,N/a,500,REDACTED PERSONAL INFORMATION,REDACTED PERSONAL INFORMATION,EXTENDED SCHOOLS GRANT,Other,30103,Education,,
,Council of the Isles of Scilly,19/12/2011,007-02-0230235,N/a,57.03,THE CONSORTIUM,141,YOUTH SERVICES,Other,30103,Education,,
,Council of the Isles of Scilly,19/12/2011,007-02-0230267,N/a,18617.21,TECHNOLOGY SUPPLIES LTD,5394,Capital,Other,30103,Capital,,
,Council of the Isles of Scilly,19/12/2011,007-02-0230268,N/a,7750,TECHNOLOGY SUPPLIES LTD,5394,Capital,Other,30103,Capital,,
,Council of the Isles of Scilly,19/12/2011,007-02-0230269,N/a,2516.78,TECHNOLOGY SUPPLIES LTD,5394,Capital,Other,30103,Capital,,
,Council of the Isles of Scilly,21/12/2011,007-02-0230448,N/a,4192,CONTINENTAL SPORTS LTD,5482,Capital,Other,30103,Capital,,
,Council of the Isles of Scilly,21/12/2011,007-02-0230449,N/a,9204,CONTINENTAL SPORTS LTD,5482,Capital,Other,30103,Capital,,
,Council of the Isles of Scilly,21/12/2011,007-02-0230450,N/a,402,CONTINENTAL SPORTS LTD,5482,Capital,Other,30103,Capital,,
,Council of the Isles of Scilly,21/12/2011,007-02-0230451,N/a,1519,CONTINENTAL SPORTS LTD,5482,Capital,Other,30103,Capital,,
,Council of the Isles of Scilly,21/12/2011,007-02-0230452,N/a,17982,CONTINENTAL SPORTS LTD,5482,Capital,Other,30103,Capital,,
,Council of the Isles of Scilly,21/12/2011,007-02-0230453,N/a,1010,CONTINENTAL SPORTS LTD,5482,Capital,Other,30103,Capital,,
,Council of the Isles of Scilly,21/12/2011,007-02-0230454,N/a,10099,CONTINENTAL SPORTS LTD,5482,Capital,Other,30103,Capital,,
,Council of the Isles of Scilly,12/12/2011,007-02-0229654,N/a,135.25,ADD AIR,3667,WASTE DISPOSAL - INCINERATOR,Other materials,30303,Environmental Services,,
,Council of the Isles of Scilly,06/12/2011,018-02-0228952,N/a,986.96,BURDENS LTD,2446,HIGHWAYS  - ROUTINE REPAIRS,Other materials,30303,"Highways, Roads & Transport",,
,Council of the Isles of Scilly,19/12/2011,007-02-0230199,N/a,328.99,BURDENS LTD,2446,HIGHWAYS  - ROUTINE REPAIRS,Other materials,30303,"Highways, Roads & Transport",,
,Council of the Isles of Scilly,19/12/2011,007-02-0230240,N/a,341.65,SCILLONIA BUILDING SUPPLIES,202,HIGHWAYS  - ROUTINE REPAIRS,Other materials,30303,"Highways, Roads & Transport",,
,Council of the Isles of Scilly,19/12/2011,007-02-0230240,N/a,77.58,SCILLONIA BUILDING SUPPLIES,202,HIGHWAYS  - ROUTINE REPAIRS,Other materials,30303,"Highways, Roads & Transport",,
,Council of the Isles of Scilly,28/12/2011,007-02-0230594,N/a,85,VODAFONE LTD,239,DIRECT LABOUR FORCE,Other materials,30303,Other Operating Income & Expenditure,,
,Council of the Isles of Scilly,19/12/2011,007-02-0230240,N/a,3.5,SCILLONIA BUILDING SUPPLIES,202,IOS WATER SERVICES,Other materials,30303,Other Operating Income & Expenditure,,
,Council of the Isles of Scilly,28/12/2011,007-02-0230537,N/a,906.76,OIL & WATER SUPPLIES LTD,3640,IOS WATER SERVICES,Other materials,30303,Other Operating Income & Expenditure,,
,Council of the Isles of Scilly,19/12/2011,007-02-0230199,N/a,328.99,BURDENS LTD,2446,IOS WATER SERVICES,Other materials,30303,Other Operating Income & Expenditure,,
,Council of the Isles of Scilly,12/12/2011,015-02-0229704,N/a,197.99,PFS (HELSTON) LTD,1117,IOS WATER SERVICES,Other materials,30303,Other Operating Income & Expenditure,,
,Council of the Isles of Scilly,12/12/2011,015-02-0229704,N/a,1498.94,PFS (HELSTON) LTD,1117,IOS WATER SERVICES,Other materials,30303,Other Operating Income & Expenditure,,
,Council of the Isles of Scilly,19/12/2011,007-02-0230240,N/a,12.32,SCILLONIA BUILDING SUPPLIES,202,IOS WATER SERVICES - BRYHER,Other materials,30303,Other Operating Income & Expenditure,,
,Council of the Isles of Scilly,19/12/2011,007-02-0230199,N/a,328.98,BURDENS LTD,2446,IOS WATER SERVICES - DESALINATION,Other materials,30303,Other Operating Income & Expenditure,,
,Council of the Isles of Scilly,19/12/2011,007-02-0230201,N/a,770.71,BURDENS LTD,2446,MOORWELL DEPOT,Other materials,30303,Other Operating Income & Expenditure,,
,Council of the Isles of Scilly,19/12/2011,007-02-0230240,N/a,16.62,SCILLONIA BUILDING SUPPLIES,202,Small Plant - Other,Other materials,30303,Other Operating Income & Expenditure,,
,Council of the Isles of Scilly,19/12/2011,007-02-0230240,N/a,6.88,SCILLONIA BUILDING SUPPLIES,202,OLDER PEOPLE OVER 65 - PARK HOUSE RESIDENTIAL CARE,Other materials,30303,Adult & Community Services,,
,Council of the Isles of Scilly,19/12/2011,007-02-0230240,N/a,25.24,SCILLONIA BUILDING SUPPLIES,202,OFFICE - TOWN HALL,Other materials,30303,Central Services,,
,Council of the Isles of Scilly,19/12/2011,007-02-0230240,N/a,115.35,SCILLONIA BUILDING SUPPLIES,202,CARN THOMAS EDUCATION BUILDING,Other materials,30303,Central Services,,
,Council of the Isles of Scilly,19/12/2011,007-02-0230240,N/a,50.57,SCILLONIA BUILDING SUPPLIES,202,ADULT & COMMUNITY LEARNING - GENERAL,Other materials,30303,Education,,
,Council of the Isles of Scilly,19/12/2011,007-02-0230240,N/a,71.45,SCILLONIA BUILDING SUPPLIES,202,EMERGENCY PLANNING,Other materials,30303,Central Services,,
,Council of the Isles of Scilly,19/12/2011,007-02-0230240,N/a,3120,SCILLONIA BUILDING SUPPLIES,202,Capital,Other materials,30303,Capital,,
,Council of the Isles of Scilly,06/12/2011,018-02-0228944,N/a,61.1,SCILLONIAN DAIRY LTD,1105,ADULT & COMMUNITY LEARNING - SFA,Meetings,31001,Education,,
,Council of the Isles of Scilly,06/12/2011,018-02-0228944,N/a,82.8,SCILLONIAN DAIRY LTD,1105,ADULT & COMMUNITY LEARNING - SFA,Meetings,31001,Education,,
,Council of the Isles of Scilly,19/12/2011,007-02-0230174,N/a,48.3,SCILLONIAN DAIRY LTD,1105,ADULT & COMMUNITY LEARNING - SFA,Meetings,31001,Education,,
,Council of the Isles of Scilly,19/12/2011,007-02-0230178,N/a,266.1,SCILLONIAN DAIRY LTD,1105,ADULT & COMMUNITY LEARNING - SFA,Meetings,31001,Education,,
,Council of the Isles of Scilly,19/12/2011,007-02-0230179,N/a,28.68,SCILLONIAN DAIRY LTD,1105,ADULT & COMMUNITY LEARNING - SFA,Meetings,31001,Education,,
,Council of the Isles of Scilly,19/12/2011,007-02-0230177,N/a,17.7,SCILLONIAN DAIRY LTD,1105,ADULT & COMMUNITY LEARNING - CONVERGENCE - ESF,Meetings,31001,Education,,
,Council of the Isles of Scilly,06/12/2011,018-02-0228944,N/a,21.75,SCILLONIAN DAIRY LTD,1105,ADULT & COMMUNITY LEARNING - CONVERGENCE - ESF,Meetings,31001,Education,,
,Council of the Isles of Scilly,19/12/2011,007-02-0230176,N/a,29.5,SCILLONIAN DAIRY LTD,1105,ADULT & COMMUNITY LEARNING - PROJECTS,Meetings,31001,Education,,
,Council of the Isles of Scilly,21/12/2011,007-02-0230459,N/a,142.5,CASH,3091,INTERNAL SUPPORT SERVICES - MISCELLANEOUS,Meetings,31001,Central Services,,
,Council of the Isles of Scilly,28/12/2011,007-02-0230619,N/a,41.6,SCILLONIAN DAIRY LTD,1105,CHILDRENS SERVICES - CAF/EY,Meetings,31001,Childrens Social Care,,
,Council of the Isles of Scilly,12/12/2011,007-02-0229714,N/a,91.2,THE WHEELHOUSE,5220,OLDER PEOPLE OVER 65 - OTHER - CARERS,Other provision,31003,Adult & Community Services,,
,Council of the Isles of Scilly,19/12/2011,007-02-0230241,N/a,4.2,R HAND,215,OLDER PEOPLE OVER 65 - PARK HOUSE RESIDENTIAL CARE,Other provision,31003,Adult & Community Services,,
,Council of the Isles of Scilly,14/12/2011,007-02-0229927,N/a,200,CASH,3091,OTHER ADULT SERVICES - OTHER ADULT SERVICES,Other provision,31003,Adult & Community Services,,
,Council of the Isles of Scilly,19/12/2011,007-02-0230166,N/a,41.3,SCILLONIAN DAIRY LTD,1105,STRATEGIC MANAGEMENT - CWDC (Children's Workforce Development Council) ,Other provision,31003,Education,,
,Council of the Isles of Scilly,19/12/2011,007-02-0230236,N/a,45.77,THE CONSORTIUM,141,Early Years - CHILDRENS INFO SERVICE,Other provision,31003,Education,,
,Council of the Isles of Scilly,19/12/2011,007-02-0230165,N/a,50.27,SCILLONIAN DAIRY LTD,1105,Early Years - Training for childcare workers ,Other provision,31003,Education,,
,Council of the Isles of Scilly,19/12/2011,007-02-0230171,N/a,36.75,SCILLONIAN DAIRY LTD,1105,Early Years - Training for childcare workers ,Other provision,31003,Education,,
,Council of the Isles of Scilly,28/12/2011,007-02-0230618,N/a,62.4,SCILLONIAN DAIRY LTD,1105,CHILDRENS SERVICES - COMMISSIONING & SOCIAL WORK,Other provision,31003,Childrens Social Care,,
,Council of the Isles of Scilly,28/12/2011,007-02-0230580,N/a,188.54,GREENHAM TRADING LIMITED,33,OPEN SPACES AND BEACHES,Protective Clothing,31102,Cultural Services,,
,Council of the Isles of Scilly,28/12/2011,007-02-0230580,N/a,-16.16,GREENHAM TRADING LIMITED,33,OPEN SPACES AND BEACHES,Protective Clothing,31102,Cultural Services,,
,Council of the Isles of Scilly,28/12/2011,007-02-0230580,N/a,47.93,GREENHAM TRADING LIMITED,33,STREET SWEEPING,Protective Clothing,31102,Environmental Services,,
,Council of the Isles of Scilly,28/12/2011,007-02-0230580,N/a,138.47,GREENHAM TRADING LIMITED,33,DOMESTIC REFUSE COLLECTION,Protective Clothing,31102,Environmental Services,,
,Council of the Isles of Scilly,19/12/2011,007-02-0230229,N/a,47.94,GREENHAM TRADING LIMITED,33,DOMESTIC REFUSE COLLECTION,Protective Clothing,31102,Environmental Services,,
,Council of the Isles of Scilly,19/12/2011,007-02-0230229,N/a,47.94,GREENHAM TRADING LIMITED,33,TRADE WASTE COLLECTION,Protective Clothing,31102,Environmental Services,,
,Council of the Isles of Scilly,28/12/2011,007-02-0230580,N/a,138.47,GREENHAM TRADING LIMITED,33,TRADE WASTE COLLECTION,Protective Clothing,31102,Environmental Services,,
,Council of the Isles of Scilly,28/12/2011,007-02-0230580,N/a,184.75,GREENHAM TRADING LIMITED,33,WASTE DISPOSAL - INCINERATOR,Protective Clothing,31102,Environmental Services,,
,Council of the Isles of Scilly,28/12/2011,007-02-0230580,N/a,126.97,GREENHAM TRADING LIMITED,33,WASTE DISPOSAL - RECYCLING,Protective Clothing,31102,Environmental Services,,
,Council of the Isles of Scilly,19/12/2011,007-02-0230229,N/a,125.32,GREENHAM TRADING LIMITED,33,WASTE DISPOSAL - RECYCLING,Protective Clothing,31102,Environmental Services,,
,Council of the Isles of Scilly,19/12/2011,007-02-0230230,N/a,16.16,GREENHAM TRADING LIMITED,33,WASTE DISPOSAL - RECYCLING,Protective Clothing,31102,Environmental Services,,
,Council of the Isles of Scilly,28/12/2011,007-02-0230580,N/a,241.3,GREENHAM TRADING LIMITED,33,IOS WATER SERVICES,Protective Clothing,31102,Environmental Services,,
,Council of the Isles of Scilly,28/12/2011,007-02-0230580,N/a,119.73,GREENHAM TRADING LIMITED,33,HIGHWAYS  - ROUTINE REPAIRS,Protective Clothing,31102,"Highways, Roads & Transport",,
,Council of the Isles of Scilly,19/12/2011,007-02-0230229,N/a,18.02,GREENHAM TRADING LIMITED,33,HIGHWAYS  - ROUTINE REPAIRS,Protective Clothing,31102,"Highways, Roads & Transport",,
,Council of the Isles of Scilly,19/12/2011,007-02-0230229,N/a,96.14,GREENHAM TRADING LIMITED,33,DIRECT LABOUR FORCE,Protective Clothing,31102,Other Operating Income & Expenditure,,
,Council of the Isles of Scilly,28/12/2011,007-02-0230580,N/a,183.97,GREENHAM TRADING LIMITED,33,DIRECT LABOUR FORCE,Protective Clothing,31102,Other Operating Income & Expenditure,,
,Council of the Isles of Scilly,19/12/2011,007-02-0230229,N/a,16.16,GREENHAM TRADING LIMITED,33,IOS SEWERAGE SERVICES,Protective Clothing,31102,Other Operating Income & Expenditure,,
,Council of the Isles of Scilly,19/12/2011,007-02-0230229,N/a,16.16,GREENHAM TRADING LIMITED,33,IOS WATER SERVICES,Protective Clothing,31102,Other Operating Income & Expenditure,,
,Council of the Isles of Scilly,28/12/2011,007-02-0230631,N/a,54.99,BURDENS LTD,2446,IOS WATER SERVICES,Protective Clothing,31102,Other Operating Income & Expenditure,,
,Council of the Isles of Scilly,28/12/2011,007-02-0230580,N/a,92.12,GREENHAM TRADING LIMITED,33,PLANNED R&M,Protective Clothing,31102,Housing Revenue Account,,
,Council of the Isles of Scilly,12/12/2011,007-02-0229784,N/a,28.32,SIBLEY'S FUEL & MARINE SERVICE,194,FIRE & RESCUE OPERATIONS,Other,31201,Fire & rescue,,
,Council of the Isles of Scilly,12/12/2011,007-02-0229784,N/a,7.08,SIBLEY'S FUEL & MARINE SERVICE,194,FIRE & RESCUE OPERATIONS,Other,31201,Fire & rescue,,
,Council of the Isles of Scilly,12/12/2011,007-02-0229784,N/a,28.32,SIBLEY'S FUEL & MARINE SERVICE,194,FIRE & RESCUE OPERATIONS,Other,31201,Fire & rescue,,
,Council of the Isles of Scilly,12/12/2011,007-02-0229783,N/a,21.24,SIBLEY'S FUEL & MARINE SERVICE,194,AIRPORT - FIRE & RESCUE,Other,31201,Other Operating Income & Expenditure,,
,Council of the Isles of Scilly,28/12/2011,007-02-0230626,N/a,29.5,SJH DESIGN SERVICES,2002,IOS WATER SERVICES - BRYHER,Other printing,32004,Other Operating Income & Expenditure,,
,Council of the Isles of Scilly,19/12/2011,007-02-0230216,N/a,500,TIM GUTHRIE,3512,TOURISM - TIC,Publications,32101,Cultural Services,,
,Council of the Isles of Scilly,19/12/2011,007-02-0230237,N/a,9.07,THE CONSORTIUM,141,OLDER PEOPLE OVER 65 - PARK HOUSE RESIDENTIAL CARE,General,32201,Adult & Community Services,,
,Council of the Isles of Scilly,28/12/2011,007-02-0230583,N/a,36.98,VIKING DIRECT LTD,83,OTHER ADULT SERVICES - OTHER ADULT SERVICES,General,32201,Adult & Community Services,,
,Council of the Isles of Scilly,28/12/2011,007-02-0230583,N/a,296.21,VIKING DIRECT LTD,83,OFFICE - TOWN HALL,General,32201,Central Services,,
,Council of the Isles of Scilly,28/12/2011,007-02-0230583,N/a,-2.96,VIKING DIRECT LTD,83,OFFICE - TOWN HALL,General,32201,Central Services,,
,Council of the Isles of Scilly,19/12/2011,007-02-0230237,N/a,5.76,THE CONSORTIUM,141,OFFICE - TOWN HALL,General,32201,Central Services,,
,Council of the Isles of Scilly,05/12/2011,018-02-0228923,N/a,146.56,VIKING DIRECT LTD,83,ADULT & COMMUNITY LEARNING - GENERAL,General,32201,Education,,
,Council of the Isles of Scilly,05/12/2011,018-02-0228924,N/a,168.08,VIKING DIRECT LTD,83,ADULT & COMMUNITY LEARNING - GENERAL,General,32201,Education,,
,Council of the Isles of Scilly,28/12/2011,007-02-0230582,N/a,48.49,VIKING DIRECT LTD,83,Early Years - GENERAL,General,32201,Education,,
,Council of the Isles of Scilly,19/12/2011,007-02-0230236,N/a,27.32,THE CONSORTIUM,141,Early Years - GENERAL,General,32201,Education,,
,Council of the Isles of Scilly,28/12/2011,007-02-0230583,N/a,25.39,VIKING DIRECT LTD,83,INSHORE FISHERIES & CONSERVATION AUTHORITIES,General,32201,Environmental Services,,
,Council of the Isles of Scilly,28/12/2011,007-02-0230584,N/a,249.24,VIKING DIRECT LTD,83,CHILDRENS SERVICES - COMMISSIONING & SOCIAL WORK,General,32301,Childrens Social Care,,
,Council of the Isles of Scilly,28/12/2011,007-02-0230584,N/a,2.96,VIKING DIRECT LTD,83,CHILDRENS SERVICES - COMMISSIONING & SOCIAL WORK,General,32301,Childrens Social Care,,
,Council of the Isles of Scilly,30/12/2011,007-02-0230799,N/a,70,RESURGEM ENGINEERING CO LTD,3179,IOS SEWERAGE SERVICES,Stamps/Franking,33001,Other Operating Income & Expenditure,,
,Council of the Isles of Scilly,12/12/2011,015-02-0229767,N/a,9.95,PALINTEST LIMITED,3177,IOS WATER SERVICES,Stamps/Franking,33001,Other Operating Income & Expenditure,,
,Council of the Isles of Scilly,28/12/2011,007-02-0230626,N/a,13.52,SJH DESIGN SERVICES,2002,IOS WATER SERVICES - BRYHER,Stamps/Franking,33001,Other Operating Income & Expenditure,,
,Council of the Isles of Scilly,19/12/2011,007-02-0230245,N/a,479.65,CARRIER DIRECT LTD,4715,TOURISM BROCHURE & WEBSITE,Stamps/Franking,33001,Other Operating Income & Expenditure,,
,Council of the Isles of Scilly,19/12/2011,007-02-0230246,N/a,587.59,CARRIER DIRECT LTD,4715,TOURISM BROCHURE & WEBSITE,Stamps/Franking,33001,Other Operating Income & Expenditure,,
,Council of the Isles of Scilly,19/12/2011,007-02-0230247,N/a,276.32,CARRIER DIRECT LTD,4715,TOURISM BROCHURE & WEBSITE,Stamps/Franking,33001,Other Operating Income & Expenditure,,
,Council of the Isles of Scilly,19/12/2011,018-02-0230228,N/a,145.74,THIRD SECTOR SYSTEMS,4474,INTERNAL ICT SERVICES,Courier services,33003,Central Services,,
,Council of the Isles of Scilly,12/12/2011,007-02-0229690,N/a,70,CLARK MASTS SYSTEMS LTD,4724,Capital,Courier services,33003,Capital,,
,Council of the Isles of Scilly,28/12/2011,007-02-0230658,N/a,18.5,THE PHONE CO-OP LTD,3469,WASTE DISPOSAL - INCINERATOR,Land Line - Line Rentals,33100,Environmental Services,,
,Council of the Isles of Scilly,28/12/2011,007-02-0230657,N/a,137.7,THE PHONE CO-OP LTD,3469,FIRE & RESCUE OPERATIONS,Land Line - Line Rentals,33100,Fire & rescue,,
,Council of the Isles of Scilly,28/12/2011,007-02-0230657,N/a,68.5,THE PHONE CO-OP LTD,3469,AIR TRAFFIC CONTROL,Land Line - Line Rentals,33100,Other Operating Income & Expenditure,,
,Council of the Isles of Scilly,28/12/2011,007-02-0230658,N/a,12.5,THE PHONE CO-OP LTD,3469,IOS SEWERAGE SERVICES,Land Line - Line Rentals,33100,Other Operating Income & Expenditure,,
,Council of the Isles of Scilly,28/12/2011,007-02-0230658,N/a,13.99,THE PHONE CO-OP LTD,3469,IOS WATER SERVICES,Land Line - Line Rentals,33100,Other Operating Income & Expenditure,,
,Council of the Isles of Scilly,28/12/2011,007-02-0230658,N/a,12.5,THE PHONE CO-OP LTD,3469,IOS WATER SERVICES - DESALINATION,Land Line - Line Rentals,33100,Other Operating Income & Expenditure,,
,Council of the Isles of Scilly,28/12/2011,007-02-0230658,N/a,12.5,THE PHONE CO-OP LTD,3469,MOORWELL DEPOT,Land Line - Line Rentals,33100,Other Operating Income & Expenditure,,
,Council of the Isles of Scilly,28/12/2011,007-02-0230658,N/a,6.99,THE PHONE CO-OP LTD,3469,ADULT & COMMUNITY LEARNING - SFA,Land Line - Line Rentals,33100,Education,,
,Council of the Isles of Scilly,28/12/2011,007-02-0230658,N/a,7,THE PHONE CO-OP LTD,3469,ADULT & COMMUNITY LEARNING - CONVERGENCE - ESF,Land Line - Line Rentals,33100,Education,,
,Council of the Isles of Scilly,28/12/2011,007-02-0230658,N/a,12.5,THE PHONE CO-OP LTD,3469,SWIMMING POOL,Land Line - Line Rentals,33100,Cultural Services,,
,Council of the Isles of Scilly,28/12/2011,007-02-0230658,N/a,25,THE PHONE CO-OP LTD,3469,LIBRARY SERVICE,Land Line - Line Rentals,33100,Cultural Services,,
,Council of the Isles of Scilly,28/12/2011,007-02-0230658,N/a,16.18,THE PHONE CO-OP LTD,3469,EMERGENCY PLANNING,Land Line - Line Rentals,33100,Central Services,,
,Council of the Isles of Scilly,28/12/2011,007-02-0230658,N/a,15,THE PHONE CO-OP LTD,3469,LOCAL INVOLVEMENT NETWORK,Land Line - Line Rentals,33100,Central Services,,
,Council of the Isles of Scilly,28/12/2011,007-02-0230658,N/a,510.14,THE PHONE CO-OP LTD,3469,INTERNAL ICT SERVICES,Land Line - Line Rentals,33100,Central Services,,
,Council of the Isles of Scilly,28/12/2011,007-02-0230658,N/a,5.39,THE PHONE CO-OP LTD,3469,COMMUNITY SAFETY ,Land Line - Line Rentals,33100,Environmental Services,,
,Council of the Isles of Scilly,28/12/2011,007-02-0230658,N/a,10.79,THE PHONE CO-OP LTD,3469,ECONOMIC DEVELOPMENT,Land Line - Line Rentals,33100,Planning Services,,
,Council of the Isles of Scilly,28/12/2011,007-02-0230658,N/a,10.79,THE PHONE CO-OP LTD,3469,INSHORE FISHERIES & CONSERVATION AUTHORITIES,Land Line - Line Rentals,33100,Environmental Services,,
,Council of the Isles of Scilly,28/12/2011,007-02-0230658,N/a,12.5,THE PHONE CO-OP LTD,3469,TOURISM - TIC,Land Line - Line Rentals,33100,Cultural Services,,
,Council of the Isles of Scilly,28/12/2011,007-02-0230658,N/a,14.48,THE PHONE CO-OP LTD,3469,WASTE DISPOSAL - INCINERATOR,Land Line - Calls ,33101,Environmental Services,,
,Council of the Isles of Scilly,28/12/2011,007-02-0230657,N/a,3.67,THE PHONE CO-OP LTD,3469,FIRE & RESCUE OPERATIONS,Land Line - Calls ,33101,Fire & rescue,,
,Council of the Isles of Scilly,28/12/2011,007-02-0230657,N/a,2.2,THE PHONE CO-OP LTD,3469,AIR TRAFFIC CONTROL,Land Line - Calls ,33101,Other Operating Income & Expenditure,,
,Council of the Isles of Scilly,28/12/2011,007-02-0230658,N/a,10.64,THE PHONE CO-OP LTD,3469,IOS WATER SERVICES,Land Line - Calls ,33101,Other Operating Income & Expenditure,,
,Council of the Isles of Scilly,28/12/2011,007-02-0230658,N/a,1.46,THE PHONE CO-OP LTD,3469,IOS WATER SERVICES - DESALINATION,Land Line - Calls ,33101,Other Operating Income & Expenditure,,
,Council of the Isles of Scilly,28/12/2011,007-02-0230658,N/a,1.81,THE PHONE CO-OP LTD,3469,MOORWELL DEPOT,Land Line - Calls ,33101,Other Operating Income & Expenditure,,
,Council of the Isles of Scilly,28/12/2011,007-02-0230658,N/a,2.99,THE PHONE CO-OP LTD,3469,ADULT & COMMUNITY LEARNING - SFA,Land Line - Calls ,33101,Education,,
,Council of the Isles of Scilly,28/12/2011,007-02-0230658,N/a,2.99,THE PHONE CO-OP LTD,3469,ADULT & COMMUNITY LEARNING - CONVERGENCE - ESF,Land Line - Calls ,33101,Education,,
,Council of the Isles of Scilly,28/12/2011,007-02-0230658,N/a,16.39,THE PHONE CO-OP LTD,3469,SWIMMING POOL,Land Line - Calls ,33101,Cultural Services,,
,Council of the Isles of Scilly,28/12/2011,007-02-0230658,N/a,1.02,THE PHONE CO-OP LTD,3469,LIBRARY SERVICE,Land Line - Calls ,33101,Cultural Services,,
,Council of the Isles of Scilly,28/12/2011,007-02-0230658,N/a,7.49,THE PHONE CO-OP LTD,3469,EMERGENCY PLANNING,Land Line - Calls ,33101,Central Services,,
,Council of the Isles of Scilly,28/12/2011,007-02-0230658,N/a,2.78,THE PHONE CO-OP LTD,3469,LOCAL INVOLVEMENT NETWORK,Land Line - Calls ,33101,Central Services,,
,Council of the Isles of Scilly,28/12/2011,007-02-0230658,N/a,291.2,THE PHONE CO-OP LTD,3469,INTERNAL ICT SERVICES,Land Line - Calls ,33101,Central Services,,
,Council of the Isles of Scilly,28/12/2011,007-02-0230658,N/a,10.74,THE PHONE CO-OP LTD,3469,ECONOMIC DEVELOPMENT,Land Line - Calls ,33101,Planning Services,,
,Council of the Isles of Scilly,28/12/2011,007-02-0230658,N/a,2.03,THE PHONE CO-OP LTD,3469,INSHORE FISHERIES & CONSERVATION AUTHORITIES,Land Line - Calls ,33101,Environmental Services,,
,Council of the Isles of Scilly,28/12/2011,007-02-0230658,N/a,2.18,THE PHONE CO-OP LTD,3469,TOURISM - TIC,Land Line - Calls ,33101,Cultural Services,,
,Council of the Isles of Scilly,28/12/2011,007-02-0230658,N/a,0.93,THE PHONE CO-OP LTD,3469,TOURISM BROCHURE & WEBSITE,Land Line - Calls ,33101,Other Operating Income & Expenditure,,
,Council of the Isles of Scilly,28/12/2011,007-02-0230593,N/a,8.8,VODAFONE LTD,239,WASTE DISPOSAL - RECYCLING,Mobile Calls and Rental,33103,Environmental Services,,
,Council of the Isles of Scilly,28/12/2011,007-02-0230593,N/a,18.83,VODAFONE LTD,239,FIRE & RESCUE OPERATIONS,Mobile Calls and Rental,33103,Fire & rescue,,
,Council of the Isles of Scilly,28/12/2011,007-02-0230593,N/a,21.78,VODAFONE LTD,239,AIRPORT - GENERAL,Mobile Calls and Rental,33103,Other Operating Income & Expenditure,,
,Council of the Isles of Scilly,28/12/2011,007-02-0230593,N/a,20.94,VODAFONE LTD,239,IOS SEWERAGE SERVICES,Mobile Calls and Rental,33103,Other Operating Income & Expenditure,,
,Council of the Isles of Scilly,28/12/2011,007-02-0230593,N/a,29.04,VODAFONE LTD,239,IOS WATER SERVICES,Mobile Calls and Rental,33103,Other Operating Income & Expenditure,,
,Council of the Isles of Scilly,28/12/2011,007-02-0230593,N/a,16.06,VODAFONE LTD,239,MOORWELL DEPOT,Mobile Calls and Rental,33103,Other Operating Income & Expenditure,,
,Council of the Isles of Scilly,28/12/2011,007-02-0230593,N/a,35.62,VODAFONE LTD,239,ADULT SOCIAL CARE STRATEGY,Mobile Calls and Rental,33103,Adult & Community Services,,
,Council of the Isles of Scilly,28/12/2011,007-02-0230593,N/a,8.83,VODAFONE LTD,239,ADULTS UNDER 65 MENTAL HEALTH NEEDS - OTHER SERVICES (OPERATIONAL),Mobile Calls and Rental,33103,Adult & Community Services,,
,Council of the Isles of Scilly,28/12/2011,007-02-0230593,N/a,27.8,VODAFONE LTD,239,OTHER ADULT SERVICES - OTHER ADULT SERVICES,Mobile Calls and Rental,33103,Adult & Community Services,,
,Council of the Isles of Scilly,28/12/2011,007-02-0230593,N/a,90.93,VODAFONE LTD,239,OFFICE - TOWN HALL,Mobile Calls and Rental,33103,Central Services,,
,Council of the Isles of Scilly,28/12/2011,007-02-0230593,N/a,34.01,VODAFONE LTD,239,ADULT & COMMUNITY LEARNING - GENERAL,Mobile Calls and Rental,33103,Education,,
,Council of the Isles of Scilly,28/12/2011,007-02-0230593,N/a,8.8,VODAFONE LTD,239,HANDYPERSON SCHEME,Mobile Calls and Rental,33103,Housing Services,,
,Council of the Isles of Scilly,28/12/2011,007-02-0230593,N/a,17.6,VODAFONE LTD,239,EMERGENCY PLANNING,Mobile Calls and Rental,33103,Central Services,,
,Council of the Isles of Scilly,28/12/2011,007-02-0230593,N/a,88.82,VODAFONE LTD,239,INTERNAL ICT SERVICES,Mobile Calls and Rental,33103,Central Services,,
,Council of the Isles of Scilly,28/12/2011,007-02-0230593,N/a,66.2,VODAFONE LTD,239,STRATEGIC MANAGEMENT OF CHILDRENS SERVICES,Mobile Calls and Rental,33103,Education,,
,Council of the Isles of Scilly,28/12/2011,007-02-0230593,N/a,13.45,VODAFONE LTD,239,YOUTH SERVICES,Mobile Calls and Rental,33103,Education,,
,Council of the Isles of Scilly,28/12/2011,007-02-0230593,N/a,122.99,VODAFONE LTD,239,Early Years - Parenting Support ,Mobile Calls and Rental,33103,Education,,
,Council of the Isles of Scilly,28/12/2011,007-02-0230593,N/a,54.56,VODAFONE LTD,239,CHILDRENS SERVICES - COMMISSIONING & SOCIAL WORK,Mobile Calls and Rental,33103,Childrens Social Care,,
,Council of the Isles of Scilly,28/12/2011,007-02-0230593,N/a,26.4,VODAFONE LTD,239,CHILDRENS SERVICES - SHORT BREAKS,Mobile Calls and Rental,33103,Childrens Social Care,,
,Council of the Isles of Scilly,28/12/2011,007-02-0230593,N/a,90.48,VODAFONE LTD,239,PLANNING POLICY,Mobile Calls and Rental,33103,Planning Services,,
,Council of the Isles of Scilly,28/12/2011,007-02-0230593,N/a,8.8,VODAFONE LTD,239,ENVIRONMENTAL INITIATIVES - CLIMATE CHANGE ,Mobile Calls and Rental,33103,Planning Services,,
,Council of the Isles of Scilly,28/12/2011,007-02-0230593,N/a,34.48,VODAFONE LTD,239,INSHORE FISHERIES & CONSERVATION AUTHORITIES,Mobile Calls and Rental,33103,Environmental Services,,
,Council of the Isles of Scilly,12/12/2011,007-02-0229692,N/a,600,ASSURIX LIMITED,4733,INTERNAL ICT SERVICES,Fees and Advice,33203,Central Services,,
,Council of the Isles of Scilly,05/12/2011,018-02-0228905,N/a,800,JADe,5014,INTERNAL ICT SERVICES,Fees and Advice,33203,Central Services,,
,Council of the Isles of Scilly,19/12/2011,018-02-0230228,N/a,1155,THIRD SECTOR SYSTEMS,4474,INTERNAL ICT SERVICES,Fees and Advice,33203,Central Services,,
,Council of the Isles of Scilly,06/12/2011,018-02-0228946,N/a,554,PHOENIX SOFTWARE LTD,1358,INTERNAL SUPPORT SERVICES - ONE STOP SHOP,Software Purchase,33204,Central Services,,
,Council of the Isles of Scilly,06/12/2011,018-02-0228946,N/a,509,PHOENIX SOFTWARE LTD,1358,INTERNAL SUPPORT SERVICES - ONE STOP SHOP,Software Purchase,33204,Central Services,,
,Council of the Isles of Scilly,28/12/2011,007-02-0230658,N/a,17.01,THE PHONE CO-OP LTD,3469,WASTE DISPOSAL - INCINERATOR,Software Licences,33205,Environmental Services,,
,Council of the Isles of Scilly,28/12/2011,007-02-0230658,N/a,17.01,THE PHONE CO-OP LTD,3469,IOS WATER SERVICES,Software Licences,33205,Other Operating Income & Expenditure,,
,Council of the Isles of Scilly,28/12/2011,007-02-0230658,N/a,19,THE PHONE CO-OP LTD,3469,MOORWELL DEPOT,Software Licences,33205,Other Operating Income & Expenditure,,
,Council of the Isles of Scilly,28/12/2011,007-02-0230658,N/a,19,THE PHONE CO-OP LTD,3469,SWIMMING POOL,Software Licences,33205,Cultural Services,,
,Council of the Isles of Scilly,28/12/2011,007-02-0230658,N/a,17.01,THE PHONE CO-OP LTD,3469,LIBRARY SERVICE,Software Licences,33205,Cultural Services,,
,Council of the Isles of Scilly,28/12/2011,007-02-0230658,N/a,17.01,THE PHONE CO-OP LTD,3469,CORPORATE MANAGEMENT - OTHER,Software Licences,33205,Central Services,,
,Council of the Isles of Scilly,28/12/2011,007-02-0230658,N/a,12.04,THE PHONE CO-OP LTD,3469,LOCAL INVOLVEMENT NETWORK,Software Licences,33205,Central Services,,
,Council of the Isles of Scilly,28/12/2011,007-02-0230658,N/a,154,THE PHONE CO-OP LTD,3469,INTERNAL ICT SERVICES,Software Licences,33205,Central Services,,
,Council of the Isles of Scilly,28/12/2011,007-02-0230574,N/a,1500,TXTTOOLS LTD,5493,INTERNAL ICT SERVICES,Software Licences,33205,Central Services,,
,Council of the Isles of Scilly,12/12/2011,007-02-0229712,N/a,800,TRIBAL EDUCATION LTD,4933,Early Years - Family Information Service,Software Licences,33205,Education,,
,Council of the Isles of Scilly,28/12/2011,007-02-0230658,N/a,19,THE PHONE CO-OP LTD,3469,TOURISM - TIC,Software Licences,33205,Cultural Services,,
,Council of the Isles of Scilly,28/12/2011,007-02-0230657,N/a,99.75,THE PHONE CO-OP LTD,3469,FIRE & RESCUE OPERATIONS,Broadband Internet,33206,Fire & rescue,,
,Council of the Isles of Scilly,28/12/2011,007-02-0230657,N/a,34.02,THE PHONE CO-OP LTD,3469,AIR TRAFFIC CONTROL,Broadband Internet,33206,Other Operating Income & Expenditure,,
,Council of the Isles of Scilly,28/12/2011,007-02-0230593,N/a,12.77,VODAFONE LTD,239,ADULT SOCIAL CARE STRATEGY,Broadband Internet,33206,Adult & Community Services,,
,Council of the Isles of Scilly,12/12/2011,007-02-0229709,N/a,1495,TOOLKIT WEBSITES LTD,5472,INSHORE FISHERIES & CONSERVATION AUTHORITIES,Web Site Support Contracts,33211,Environmental Services,,
,Council of the Isles of Scilly,08/12/2011,007-02-0229553,N/a,82.5,CASH,3091,DEMOCRATIC REPRESENTATION & MANAGEMENT,Civic Expenses,34004,Central Services,,
,Council of the Isles of Scilly,12/12/2011,007-02-0229731,N/a,78,BRYHER BOAT SERVICES,19,DEMOCRATIC REPRESENTATION & MANAGEMENT,Civic Expenses,34004,Central Services,,
,Council of the Isles of Scilly,19/12/2011,007-02-0230214,N/a,166.33,RADIO SCILLY LTD,3062,HANDYPERSON SCHEME,Non recruitment,37001,Housing Services,,
,Council of the Isles of Scilly,19/12/2011,007-02-0230214,N/a,166.33,RADIO SCILLY LTD,3062,HANDYPERSON SCHEME,Non recruitment,37001,Housing Services,,
,Council of the Isles of Scilly,19/12/2011,007-02-0230214,N/a,166.34,RADIO SCILLY LTD,3062,HANDYPERSON SCHEME,Non recruitment,37001,Housing Services,,
,Council of the Isles of Scilly,28/12/2011,007-02-0230651,N/a,166.33,RADIO SCILLY LTD,3062,HANDYPERSON SCHEME,Non recruitment,37001,Housing Services,,
,Council of the Isles of Scilly,28/12/2011,007-02-0230651,N/a,166.33,RADIO SCILLY LTD,3062,HANDYPERSON SCHEME,Non recruitment,37001,Housing Services,,
,Council of the Isles of Scilly,28/12/2011,007-02-0230651,N/a,166.34,RADIO SCILLY LTD,3062,HANDYPERSON SCHEME,Non recruitment,37001,Housing Services,,
,Council of the Isles of Scilly,19/12/2011,007-02-0230277,N/a,75.53,CORNWALL  COUNCIL,25,OLDER PEOPLE OVER 65 - PARK HOUSE RESIDENTIAL CARE,Other,37106,Adult & Community Services,,
,Council of the Isles of Scilly,30/12/2011,007-02-0230795,N/a,1500,PLYMOUTH CITY COUNCIL,1764,ADULT & COMMUNITY LEARNING - GENERAL,Other,37106,Education,,
,Council of the Isles of Scilly,12/12/2011,015-02-0229729,N/a,1400,TRURO & PENWITH COLLEGE,2239,ADULT & COMMUNITY LEARNING - SFA,Other,37106,Education,,
,Council of the Isles of Scilly,12/12/2011,015-02-0229683,N/a,1000,MR P B THOMAS,3763,ADULT & COMMUNITY LEARNING - CONVERGENCE - ESF,Other,37106,Education,,
,Council of the Isles of Scilly,19/12/2011,007-02-0230277,N/a,23.13,CORNWALL  COUNCIL,25,DEMOCRATIC REPRESENTATION & MANAGEMENT,Other,37106,Central Services,,
,Council of the Isles of Scilly,19/12/2011,007-02-0230277,N/a,13.73,CORNWALL  COUNCIL,25,DEMOCRATIC REPRESENTATION & MANAGEMENT,Other,37106,Central Services,,
,Council of the Isles of Scilly,19/12/2011,018-02-0230226,N/a,876.54,SYMBIONT SERVICES LTD,4211,INTERNAL SUPPORT SERVICES - MISCELLANEOUS,Other,37106,Central Services,,
,Council of the Isles of Scilly,19/12/2011,018-02-0230227,N/a,1973.42,SYMBIONT SERVICES LTD,4211,INTERNAL SUPPORT SERVICES - MISCELLANEOUS,Other,37106,Central Services,,
,Council of the Isles of Scilly,12/12/2011,015-02-0229660,N/a,1600,CIPFA,235,INTERNAL SUPPORT SERVICES - MISCELLANEOUS,Other,37106,Central Services,,
,Council of the Isles of Scilly,12/12/2011,015-02-0229660,N/a,1600,CIPFA,235,INTERNAL SUPPORT SERVICES - MISCELLANEOUS,Other,37106,Central Services,,
,Council of the Isles of Scilly,12/12/2011,015-02-0229660,N/a,3600,CIPFA,235,INTERNAL SUPPORT SERVICES - MISCELLANEOUS,Other,37106,Central Services,,
,Council of the Isles of Scilly,19/12/2011,007-02-0230209,N/a,670,SOCITM LTD,2544,INTERNAL ICT SERVICES,Other,37106,Central Services,,
,Council of the Isles of Scilly,19/12/2011,007-02-0230261,N/a,1937.6,KANDO CONSULTANCY,5174,EXTENDED SCHOOLS GRANT,Other,37106,Education,,
,Council of the Isles of Scilly,30/12/2011,007-02-0230798,N/a,6267.5,DEVON & CORNWALL CONSTABULARY,2829,EXTENDED SCHOOLS GRANT,Other,37106,Education,,
,Council of the Isles of Scilly,30/12/2011,007-02-0230786,N/a,1937.6,KANDO CONSULTANCY,5174,EXTENDED SCHOOLS GRANT,Other,37106,Education,,
,Council of the Isles of Scilly,21/12/2011,007-02-0230438,N/a,750,NORTH SOMERSET COUNCIL,4669,Early Years - SEN,Other,37106,Education,,
,Council of the Isles of Scilly,19/12/2011,018-02-0230204,N/a,873,MISS KATIE  PLAYLE,3723,Early Years - support for 3 & 4 year olds,Other,37106,Education,,
,Council of the Isles of Scilly,19/12/2011,007-02-0230220,N/a,611.1,MRS H V GLENN,1188,Early Years - support for 3 & 4 year olds,Other,37106,Education,,
,Council of the Isles of Scilly,19/12/2011,007-02-0230215,N/a,349.2,MRS E MAGEE,3336,Early Years - support for 3 & 4 year olds,Other,37106,Education,,
,Council of the Isles of Scilly,28/12/2011,007-02-0230538,N/a,145.5,MISS KATIE  PLAYLE,3723,Early Years - 2 year olds,Other,37106,Education,,
,Council of the Isles of Scilly,19/12/2011,018-02-0230185,N/a,582,MRS H V GLENN,1188,Early Years - 2 year olds,Other,37106,Education,,
,Council of the Isles of Scilly,19/12/2011,018-02-0230186,N/a,218.25,MRS E MAGEE,3336,Early Years - 2 year olds,Other,37106,Education,,
,Council of the Isles of Scilly,19/12/2011,018-02-0230188,N/a,582,MISS KATIE  PLAYLE,3723,Early Years - 2 year olds,Other,37106,Education,,
,Council of the Isles of Scilly,12/12/2011,007-02-0229652,N/a,4200,RW  WILSON,3576,DEVELOPMENT CONTROL,Other,37106,Planning Services,,
,Council of the Isles of Scilly,19/12/2011,018-02-0230224,N/a,3860.8,CORNWALL WILDLIFE TRUST,4162,AONB - GENERAL,Other,37106,Planning Services,,
,Council of the Isles of Scilly,19/12/2011,007-02-0230274,N/a,11236.31,CORNWALL  COUNCIL,25,AONB - GENERAL,Other,37106,Planning Services,,
,Council of the Isles of Scilly,05/12/2011,018-02-0228902,N/a,550,ASHFORDS,4450,Capital,Other,37106,Capital,,
,Council of the Isles of Scilly,28/12/2011,007-02-0230564,N/a,5920,PEARN AND PROCTER CHARTERED ARCHITECTS,5236,Capital,Other,37106,Capital,,
,Council of the Isles of Scilly,28/12/2011,007-02-0230626,N/a,1260,SJH DESIGN SERVICES,2002,IOS WATER SERVICES - BRYHER,Water ,37109,Other Operating Income & Expenditure,,
,Council of the Isles of Scilly,28/12/2011,007-02-0230626,N/a,231,SJH DESIGN SERVICES,2002,IOS WATER SERVICES - DESALINATION,Water ,37109,Other Operating Income & Expenditure,,
,Council of the Isles of Scilly,28/12/2011,007-02-0230626,N/a,357,SJH DESIGN SERVICES,2002,Capital,Water ,37109,Capital,,
,Council of the Isles of Scilly,28/12/2011,007-02-0230626,N/a,336,SJH DESIGN SERVICES,2002,Capital,Water ,37109,Capital,,
,Council of the Isles of Scilly,19/12/2011,007-02-0230260,N/a,120,REDACTED PERSONAL INFORMATION,REDACTED PERSONAL INFORMATION,YOUTH SERVICES,Grant payments,37302,Education,,
,Council of the Isles of Scilly,19/12/2011,007-02-0230277,N/a,148.43,CORNWALL  COUNCIL,25,COMMERCIAL PROPERTY,Cornwall Council,40201,Planning Services,,
,Council of the Isles of Scilly,19/12/2011,007-02-0230277,N/a,39.85,CORNWALL  COUNCIL,25,COMMERCIAL PROPERTY,Cornwall Council,40201,Planning Services,,
,Council of the Isles of Scilly,19/12/2011,007-02-0230277,N/a,27.46,CORNWALL  COUNCIL,25,COMMERCIAL PROPERTY,Cornwall Council,40201,Planning Services,,
,Council of the Isles of Scilly,19/12/2011,007-02-0230277,N/a,204.81,CORNWALL  COUNCIL,25,DEMOCRATIC REPRESENTATION & MANAGEMENT,Cornwall Council,40201,Central Services,,
,Council of the Isles of Scilly,19/12/2011,007-02-0230277,N/a,5.49,CORNWALL  COUNCIL,25,CORPORATE MANAGEMENT - OTHER,Cornwall Council,40201,Central Services,,
,Council of the Isles of Scilly,28/12/2011,007-02-0230578,N/a,6000,CORNWALL  COUNCIL,25,COMMUNITY SAFETY ,Cornwall Council,40201,Environmental Services,,
,Council of the Isles of Scilly,19/12/2011,007-02-0230277,N/a,12.36,CORNWALL  COUNCIL,25,NNDR,Cornwall Council,40201,Other Operating Income & Expenditure,,
,Council of the Isles of Scilly,19/12/2011,007-02-0230276,N/a,6250,CORNWALL  COUNCIL,25,EXTENDED SCHOOLS GRANT,Cornwall Council,40201,Education,,
,Council of the Isles of Scilly,28/12/2011,007-02-0230577,N/a,25,CORNWALL  COUNCIL,25,EXTENDED SCHOOLS GRANT,Cornwall Council,40201,Education,,
,Council of the Isles of Scilly,19/12/2011,007-02-0230275,N/a,900,CORNWALL  COUNCIL,25,SPECIAL EDUCATIONAL SUPPORT,Cornwall Council,40201,Education,,
,Council of the Isles of Scilly,21/12/2011,007-02-0230437,N/a,4583,NORTH SOMERSET COUNCIL,4669,STRATEGIC MANAGEMENT OF CHILDRENS SERVICES,Other,40202,Education,,
,Council of the Isles of Scilly,21/12/2011,007-02-0230456,N/a,650,PLYMOUTH CITY COUNCIL,1764,SPECIAL EDUCATIONAL SUPPORT,Other,40202,Education,,
,Council of the Isles of Scilly,21/12/2011,007-02-0230437,N/a,2108,NORTH SOMERSET COUNCIL,4669,SCHOOL IMPROVEMENT,Other,40202,Education,,
,Council of the Isles of Scilly,21/12/2011,007-02-0230437,N/a,5333,NORTH SOMERSET COUNCIL,4669,SCHOOL IMPROVEMENT,Other,40202,Education,,
,Council of the Isles of Scilly,15/12/2011,007-02-0229972,N/a,1320,CASH,3091,SUPPORTING PEOPLE,Miscellaneous,41001,Housing Services,,
,Council of the Isles of Scilly,19/12/2011,007-02-0230277,N/a,45.37,CORNWALL  COUNCIL,25,FIRE & RESCUE OPERATIONS,Professional Services,42001,Fire & rescue,,
,Council of the Isles of Scilly,28/12/2011,007-02-0230551,N/a,5750,MACE LTD,4537,Capital,Professional Services,42001,Capital,,
,Council of the Isles of Scilly,28/12/2011,007-02-0230615,N/a,6900,STRIDE TREGLOWN LTD,1013,Capital,Professional Services,42001,Capital,,
,Council of the Isles of Scilly,12/12/2011,007-02-0229682,N/a,5750,MACE LTD,4537,Capital,Professional Services,42001,Capital,,
,Council of the Isles of Scilly,12/12/2011,015-02-0229770,N/a,120,ECOLAB LTD,3183,OPEN SPACES AND BEACHES,Other,42003,Cultural Services,,
,Council of the Isles of Scilly,05/12/2011,018-02-0228930,N/a,1870,R G & J A MORTON,493,PUBLIC CONVENIENCES,Other,42003,Environmental Services,,
,Council of the Isles of Scilly,12/12/2011,015-02-0229770,N/a,120,ECOLAB LTD,3183,WASTE DISPOSAL - RECYCLING,Other,42003,Environmental Services,,
,Council of the Isles of Scilly,12/12/2011,015-02-0229710,N/a,320,MR C POTTERTON,1570,REFUSE COLLECTION - BRYHER,Other,42003,Environmental Services,,
,Council of the Isles of Scilly,28/12/2011,007-02-0230557,N/a,17300,SLR CONSULTING LIMITED,4939,WASTE STRATEGY MANAGEMENT,Other,42003,Environmental Services,,
,Council of the Isles of Scilly,28/12/2011,007-02-0230581,N/a,1222.22,DAVID PARR ENGINEERING,61,FIRE & RESCUE OPERATIONS,Other,42003,Fire & rescue,,
,Council of the Isles of Scilly,28/12/2011,007-02-0230581,N/a,611.11,DAVID PARR ENGINEERING,61,AIRPORT - GENERAL,Other,42003,Other Operating Income & Expenditure,,
,Council of the Isles of Scilly,12/12/2011,015-02-0229770,N/a,120,ECOLAB LTD,3183,AIRPORT - GENERAL,Other,42003,Other Operating Income & Expenditure,,
,Council of the Isles of Scilly,12/12/2011,015-02-0229770,N/a,90,ECOLAB LTD,3183,IOS SEWERAGE SERVICES,Other,42003,Other Operating Income & Expenditure,,
,Council of the Isles of Scilly,19/12/2011,007-02-0230161,N/a,190,CD ELECTRICAL SERVICES,1007,IOS SEWERAGE SERVICES,Other,42003,Other Operating Income & Expenditure,,
,Council of the Isles of Scilly,12/12/2011,015-02-0229770,N/a,30,ECOLAB LTD,3183,IOS WATER SERVICES,Other,42003,Other Operating Income & Expenditure,,
,Council of the Isles of Scilly,28/12/2011,007-02-0230626,N/a,157.5,SJH DESIGN SERVICES,2002,IOS WATER SERVICES,Other,42003,Other Operating Income & Expenditure,,
,Council of the Isles of Scilly,12/12/2011,015-02-0229710,N/a,1268,MR C POTTERTON,1570,IOS WATER SERVICES - BRYHER,Other,42003,Other Operating Income & Expenditure,,
,Council of the Isles of Scilly,12/12/2011,015-02-0229770,N/a,120,ECOLAB LTD,3183,RESPONSIVE R&M,Other,42003,Housing Revenue Account,,
,Council of the Isles of Scilly,09/12/2011,007-02-0229560,N/a,264970.76,KIER WESTERN,4495,Capital,Other,42003,Capital,,
,Council of the Isles of Scilly,09/12/2011,007-02-0229561,N/a,272873.23,KIER WESTERN,4495,Capital,Other,42003,Capital,,
,Council of the Isles of Scilly,28/12/2011,007-02-0230562,N/a,66.66,THE WHEELHOUSE,5220,Capital,Other,42003,Capital,,
,Council of the Isles of Scilly,28/12/2011,007-02-0230543,N/a,30739,H2OK SYSTEMS LTD,3972,Capital,Other,42003,Capital,,
,Council of the Isles of Scilly,19/12/2011,007-02-0230263,N/a,166.67,THE WHEELHOUSE,5220,Capital,Other,42003,Capital,,
,Council of the Isles of Scilly,28/12/2011,007-02-0230565,N/a,334.62,HIGHCLIFFE,5476,OLDER PEOPLE OVER 65 - RESIDENTIAL CARE (EXTERNAL AGENCIES),Residential Care,42005,Adult & Community Services,,
,Council of the Isles of Scilly,28/12/2011,007-02-0230566,N/a,1481.89,HIGHCLIFFE,5476,OLDER PEOPLE OVER 65 - RESIDENTIAL CARE (EXTERNAL AGENCIES),Residential Care,42005,Adult & Community Services,,
,Council of the Isles of Scilly,28/12/2011,007-02-0230539,N/a,451.05,MISS KATIE  PLAYLE,3723,FAMILY SUPPORT SERVICES - OTHER INCL DIRECT PAYMENTS,Day Care,42006,Childrens Social Care,,
,Council of the Isles of Scilly,28/12/2011,007-02-0230540,N/a,645.05,MISS KATIE  PLAYLE,3723,FAMILY SUPPORT SERVICES - OTHER INCL DIRECT PAYMENTS,Day Care,42006,Childrens Social Care,,
,Council of the Isles of Scilly,28/12/2011,007-02-0230559,N/a,1444,REDACTED PERSONAL INFORMATION,REDACTED PERSONAL INFORMATION,POST 16 OPPORTUNITIES,Accommodation Grants,50104,Education,,
,Council of the Isles of Scilly,28/12/2011,007-02-0230625,N/a,2888,REDACTED PERSONAL INFORMATION,REDACTED PERSONAL INFORMATION,POST 16 OPPORTUNITIES,Accommodation Grants,50104,Education,,
,Council of the Isles of Scilly,19/12/2011,018-02-0230057,N/a,722,REDACTED PERSONAL INFORMATION,REDACTED PERSONAL INFORMATION,POST 16 OPPORTUNITIES,Accommodation Grants,50104,Education,,
,Council of the Isles of Scilly,19/12/2011,018-02-0230069,N/a,722,REDACTED PERSONAL INFORMATION,REDACTED PERSONAL INFORMATION,POST 16 OPPORTUNITIES,Accommodation Grants,50104,Education,,
,Council of the Isles of Scilly,19/12/2011,018-02-0230070,N/a,1444,REDACTED PERSONAL INFORMATION,REDACTED PERSONAL INFORMATION,POST 16 OPPORTUNITIES,Accommodation Grants,50104,Education,,
,Council of the Isles of Scilly,19/12/2011,018-02-0230059,N/a,722,REDACTED PERSONAL INFORMATION,REDACTED PERSONAL INFORMATION,POST 16 OPPORTUNITIES,Accommodation Grants,50104,Education,,
,Council of the Isles of Scilly,19/12/2011,018-02-0230060,N/a,722,REDACTED PERSONAL INFORMATION,REDACTED PERSONAL INFORMATION,POST 16 OPPORTUNITIES,Accommodation Grants,50104,Education,,
,Council of the Isles of Scilly,19/12/2011,018-02-0230061,N/a,680,REDACTED PERSONAL INFORMATION,REDACTED PERSONAL INFORMATION,POST 16 OPPORTUNITIES,Accommodation Grants,50104,Education,,
,Council of the Isles of Scilly,19/12/2011,018-02-0230062,N/a,722,REDACTED PERSONAL INFORMATION,REDACTED PERSONAL INFORMATION,POST 16 OPPORTUNITIES,Accommodation Grants,50104,Education,,
,Council of the Isles of Scilly,19/12/2011,018-02-0230063,N/a,722,REDACTED PERSONAL INFORMATION,REDACTED PERSONAL INFORMATION,POST 16 OPPORTUNITIES,Accommodation Grants,50104,Education,,
,Council of the Isles of Scilly,19/12/2011,018-02-0230065,N/a,722,REDACTED PERSONAL INFORMATION,REDACTED PERSONAL INFORMATION,POST 16 OPPORTUNITIES,Accommodation Grants,50104,Education,,
,Council of the Isles of Scilly,19/12/2011,018-02-0230068,N/a,722,REDACTED PERSONAL INFORMATION,REDACTED PERSONAL INFORMATION,POST 16 OPPORTUNITIES,Accommodation Grants,50104,Education,,
,Council of the Isles of Scilly,19/12/2011,018-02-0230071,N/a,722,REDACTED PERSONAL INFORMATION,REDACTED PERSONAL INFORMATION,POST 16 OPPORTUNITIES,Accommodation Grants,50104,Education,,
,Council of the Isles of Scilly,19/12/2011,018-02-0230072,N/a,722,REDACTED PERSONAL INFORMATION,REDACTED PERSONAL INFORMATION,POST 16 OPPORTUNITIES,Accommodation Grants,50104,Education,,
,Council of the Isles of Scilly,19/12/2011,018-02-0230073,N/a,722,REDACTED PERSONAL INFORMATION,REDACTED PERSONAL INFORMATION,POST 16 OPPORTUNITIES,Accommodation Grants,50104,Education,,
,Council of the Isles of Scilly,19/12/2011,018-02-0230074,N/a,722,REDACTED PERSONAL INFORMATION,REDACTED PERSONAL INFORMATION,POST 16 OPPORTUNITIES,Accommodation Grants,50104,Education,,
,Council of the Isles of Scilly,19/12/2011,018-02-0230075,N/a,1444,REDACTED PERSONAL INFORMATION,REDACTED PERSONAL INFORMATION,POST 16 OPPORTUNITIES,Accommodation Grants,50104,Education,,
,Council of the Isles of Scilly,19/12/2011,018-02-0230076,N/a,722,REDACTED PERSONAL INFORMATION,REDACTED PERSONAL INFORMATION,POST 16 OPPORTUNITIES,Accommodation Grants,50104,Education,,
,Council of the Isles of Scilly,19/12/2011,018-02-0230077,N/a,722,REDACTED PERSONAL INFORMATION,REDACTED PERSONAL INFORMATION,POST 16 OPPORTUNITIES,Accommodation Grants,50104,Education,,
,Council of the Isles of Scilly,19/12/2011,018-02-0230078,N/a,1444,REDACTED PERSONAL INFORMATION,REDACTED PERSONAL INFORMATION,POST 16 OPPORTUNITIES,Accommodation Grants,50104,Education,,
,Council of the Isles of Scilly,19/12/2011,018-02-0230079,N/a,722,REDACTED PERSONAL INFORMATION,REDACTED PERSONAL INFORMATION,POST 16 OPPORTUNITIES,Accommodation Grants,50104,Education,,
,Council of the Isles of Scilly,19/12/2011,018-02-0230080,N/a,722,REDACTED PERSONAL INFORMATION,REDACTED PERSONAL INFORMATION,POST 16 OPPORTUNITIES,Accommodation Grants,50104,Education,,
,Council of the Isles of Scilly,19/12/2011,018-02-0230081,N/a,1444,REDACTED PERSONAL INFORMATION,REDACTED PERSONAL INFORMATION,POST 16 OPPORTUNITIES,Accommodation Grants,50104,Education,,
,Council of the Isles of Scilly,19/12/2011,018-02-0230082,N/a,722,REDACTED PERSONAL INFORMATION,REDACTED PERSONAL INFORMATION,POST 16 OPPORTUNITIES,Accommodation Grants,50104,Education,,
,Council of the Isles of Scilly,19/12/2011,018-02-0230083,N/a,1444,REDACTED PERSONAL INFORMATION,REDACTED PERSONAL INFORMATION,POST 16 OPPORTUNITIES,Accommodation Grants,50104,Education,,
,Council of the Isles of Scilly,19/12/2011,018-02-0230084,N/a,722,REDACTED PERSONAL INFORMATION,REDACTED PERSONAL INFORMATION,POST 16 OPPORTUNITIES,Accommodation Grants,50104,Education,,
,Council of the Isles of Scilly,19/12/2011,018-02-0230085,N/a,722,REDACTED PERSONAL INFORMATION,REDACTED PERSONAL INFORMATION,POST 16 OPPORTUNITIES,Accommodation Grants,50104,Education,,
,Council of the Isles of Scilly,19/12/2011,018-02-0230086,N/a,722,REDACTED PERSONAL INFORMATION,REDACTED PERSONAL INFORMATION,POST 16 OPPORTUNITIES,Accommodation Grants,50104,Education,,
,Council of the Isles of Scilly,19/12/2011,018-02-0230092,N/a,722,REDACTED PERSONAL INFORMATION,REDACTED PERSONAL INFORMATION,POST 16 OPPORTUNITIES,Accommodation Grants,50104,Education,,
,Council of the Isles of Scilly,19/12/2011,018-02-0230093,N/a,722,REDACTED PERSONAL INFORMATION,REDACTED PERSONAL INFORMATION,POST 16 OPPORTUNITIES,Accommodation Grants,50104,Education,,
,Council of the Isles of Scilly,19/12/2011,018-02-0230090,N/a,722,REDACTED PERSONAL INFORMATION,REDACTED PERSONAL INFORMATION,POST 16 OPPORTUNITIES,Accommodation Grants,50104,Education,,
,Council of the Isles of Scilly,19/12/2011,018-02-0230058,N/a,722,REDACTED PERSONAL INFORMATION,REDACTED PERSONAL INFORMATION,POST 16 OPPORTUNITIES,Accommodation Grants,50104,Education,,
,Council of the Isles of Scilly,19/12/2011,018-02-0230087,N/a,1444,REDACTED PERSONAL INFORMATION,REDACTED PERSONAL INFORMATION,POST 16 OPPORTUNITIES,Accommodation Grants,50104,Education,,
,Council of the Isles of Scilly,19/12/2011,018-02-0230088,N/a,722,REDACTED PERSONAL INFORMATION,REDACTED PERSONAL INFORMATION,POST 16 OPPORTUNITIES,Accommodation Grants,50104,Education,,
,Council of the Isles of Scilly,19/12/2011,018-02-0230087,N/a,100,REDACTED PERSONAL INFORMATION,REDACTED PERSONAL INFORMATION,POST 16 OPPORTUNITIES,Travel Grants,50106,Education,,
,Council of the Isles of Scilly,19/12/2011,018-02-0230088,N/a,100,REDACTED PERSONAL INFORMATION,REDACTED PERSONAL INFORMATION,POST 16 OPPORTUNITIES,Travel Grants,50106,Education,,
,Council of the Isles of Scilly,19/12/2011,018-02-0230058,N/a,100,REDACTED PERSONAL INFORMATION,REDACTED PERSONAL INFORMATION,POST 16 OPPORTUNITIES,Travel Grants,50106,Education,,
,Council of the Isles of Scilly,19/12/2011,018-02-0230090,N/a,100,REDACTED PERSONAL INFORMATION,REDACTED PERSONAL INFORMATION,POST 16 OPPORTUNITIES,Travel Grants,50106,Education,,
,Council of the Isles of Scilly,19/12/2011,018-02-0230086,N/a,100,REDACTED PERSONAL INFORMATION,REDACTED PERSONAL INFORMATION,POST 16 OPPORTUNITIES,Travel Grants,50106,Education,,
,Council of the Isles of Scilly,19/12/2011,018-02-0230080,N/a,46.7,REDACTED PERSONAL INFORMATION,REDACTED PERSONAL INFORMATION,POST 16 OPPORTUNITIES,Travel Grants,50106,Education,,
,Council of the Isles of Scilly,19/12/2011,018-02-0230080,N/a,100,REDACTED PERSONAL INFORMATION,REDACTED PERSONAL INFORMATION,POST 16 OPPORTUNITIES,Travel Grants,50106,Education,,
,Council of the Isles of Scilly,19/12/2011,018-02-0230077,N/a,100,REDACTED PERSONAL INFORMATION,REDACTED PERSONAL INFORMATION,POST 16 OPPORTUNITIES,Travel Grants,50106,Education,,
,Council of the Isles of Scilly,19/12/2011,018-02-0230072,N/a,100,REDACTED PERSONAL INFORMATION,REDACTED PERSONAL INFORMATION,POST 16 OPPORTUNITIES,Travel Grants,50106,Education,,
,Council of the Isles of Scilly,19/12/2011,018-02-0230073,N/a,100,REDACTED PERSONAL INFORMATION,REDACTED PERSONAL INFORMATION,POST 16 OPPORTUNITIES,Travel Grants,50106,Education,,
,Council of the Isles of Scilly,19/12/2011,018-02-0230068,N/a,100,REDACTED PERSONAL INFORMATION,REDACTED PERSONAL INFORMATION,POST 16 OPPORTUNITIES,Travel Grants,50106,Education,,
,Council of the Isles of Scilly,19/12/2011,018-02-0230070,N/a,100,REDACTED PERSONAL INFORMATION,REDACTED PERSONAL INFORMATION,POST 16 OPPORTUNITIES,Travel Grants,50106,Education,,
,Council of the Isles of Scilly,19/12/2011,018-02-0230071,N/a,100,REDACTED PERSONAL INFORMATION,REDACTED PERSONAL INFORMATION,POST 16 OPPORTUNITIES,Travel Grants,50106,Education,,
,Council of the Isles of Scilly,19/12/2011,018-02-0230057,N/a,100,REDACTED PERSONAL INFORMATION,REDACTED PERSONAL INFORMATION,POST 16 OPPORTUNITIES,Travel Grants,50106,Education,,
,Council of the Isles of Scilly,28/12/2011,007-02-0230625,N/a,46.7,REDACTED PERSONAL INFORMATION,REDACTED PERSONAL INFORMATION,POST 16 OPPORTUNITIES,Travel Grants,50106,Education,,
,Council of the Isles of Scilly,28/12/2011,007-02-0230628,N/a,100,REDACTED PERSONAL INFORMATION,REDACTED PERSONAL INFORMATION,POST 16 OPPORTUNITIES,Travel Grants,50106,Education,,
